{"text_format":"3","workbook":"xlsx","n_sheets":3,"sheets":["Data Peta Rencana","Peta Rencana Agile","Tentang"],"not_rendered":{"defined_names":5},"read":"whole","date_system":"1900"}

{"sheet":"Data Peta Rencana","index":0,"n_rows":13,"n_cols":7,"rows_kept":13,"merged":[[12,1,12,4]]}
["Buat Peta Rencana Agile dengan memasukkan pencapaian atau aktivitas penting ke tabel Data Peta Rencana dalam lembar kerja ini.\nJudul lembar kerja ini terletak dalam sel B1. \nInformasi tentang cara menggunakan lembar kerja ini, termasuk instruksi untuk pembaca layar terletak dalam lembar kerja Tentang.\nLanjutkan menavigasi ke bawah kolom A untuk instruksi lebih lanjut.","Data Garis Waktu Agile"]
["Judul tabel terletak dalam sel B2 hingga E2. Gunakan filter judul untuk mengurutkan tabel dan menemukan item tertentu.\nPeta Rencana Agile paling sesuai saat tabel diurutkan dalam urutan Naik menurut Prioritas, diikuti dengan Pencapaian atau Aktivitas.\nData contoh terletak dalam tabel Data Peta Rencana dari sel B3 hingga E12. \nKetika satu pencapaian atau aktivitas selesai, perbarui bidang Hasil terkait untuk memperlihatkan hasil dalam lembar kerja Peta Rencana Agile. Masukkan \"Tidak Ada Perubahan\" untuk menyoroti pencapaian tanpa pengaruh.\nLanjutkan ke sel A13 untuk instruksi berikutnya.\n","Target","Pencapaian atau Aktivitas","Prioritas","Hasil",null,"<-- urutkan tabel menurut Prioritas dan Pencapaian atau Aktivitas, dalam urutan naik"]
[null,"Saat Ini","Aktivitas 1\nMembuat prototipe","1 - Tinggi",null,null,"<-- tambahkan hasil untuk setiap Pencapaian yang diselesaikan. Masukkan \"Tidak Ada Perubahan\" untuk menyoroti pencapaian tanpa pengaruh."]
[null,"Jangka Pendek","Aktivitas 2\nDemo prototipe","1 - Tinggi"]
[null,"Saat Ini","Aktivitas 6","1 - Tinggi"]
[null,"Masa Mendatang","Aktivitas 7\nPengembangan Pengalihdayaan implementasi tahap pertama","1 - Tinggi"]
[null,"Selesai","Aktivitas 9\nTahap pertama disetujui","1 - Tinggi","Turunkan 10%"]
[null,"Masa Mendatang","Aktivitas 10","2 - Menengah"]
[null,"Jangka Pendek","Aktivitas 8","2 - Menengah"]
[null,"Selesai","Aktivitas 3","3 - Rendah","Tidak Ada Perubahan"]
[null,"Masa Mendatang","Aktivitas 4","3 - Rendah"]
[null,"Saat Ini","Aktivitas 5","3 - Rendah"]
["Tambahkan item baru dengan menyisipkan baris baru ke tabel di atas garis ini.\nIni adalah instruksi terakhir dalam lembar kerja ini.","Tambahkan item baru dengan menyisipkan baris baru di atas garis ini"]

{"sheet":"Peta Rencana Agile","index":1,"n_rows":100,"n_cols":8,"rows_kept":100}
["Peta Rencana Agile yang menampilkan pencapaian dan aktivitas dari lembar kerja Data Peta Rencana terletak dalam lembar kerja ini. \nJudul terletak dalam sel B1. \nHasil yang memiliki frasa \"Tidak Ada Perubahan\" disorot dengan warna oranye, rgb(255, 230, 210).\nPencapaian atau aktivitas yang diselesaikan disorot dengan warna hijau, rgb(237,251,219).","Peta Rencana Agile"]
["Judul bagan terletak dalam sel B2, D2, F2, dan H2. Berisi: Selesai, Saat Ini, Jangka Pendek, dan Masa Mendatang. Ubah judul ini untuk mengubah nilai pilihan Target dalam tabel Data Peta Rencana dalam lembar kerja Data Peta Rencana.\nSel B3 hingga H20 berisi Pencapaian dan aktivitas untuk judul dalam baris ini. \nPencapaian dan aktivitas dibuat dalam lembar kerja Data Peta Rencana.\nJANGAN mengubah atau menghapus entri di dalam lembar kerja ini. Perbarui tabel Data Peta Rencana dalam lembar kerja Data Peta Rencana untuk memperbarui konten dalam lembar kerja ini.\nIni adalah instruksi terakhir dalam lembar kerja ini.","Selesai",null,"Saat Ini",null,"Jangka Pendek",null,"Masa Mendatang"]
[null,{"$f":"IFERROR(INDEX(Aktivitas,SMALL(IF(Target=$B$2,ROW(Aktivitas)-MIN(ROW(Aktivitas))+1),ROWS($B$3:B3)))&\" \"&CHAR(10)&(INDEX(Hasil,SMALL(IF(Target=$B$2,ROW(Hasil)-MIN(ROW(Hasil))+1),ROWS($B$3:B3))))&CHAR(10),\"\")","v":"Aktivitas 9\nTahap pertama disetujui \nTurunkan 10%\n"},null,{"$f":"IFERROR(INDEX(Aktivitas,SMALL(IF(Target=$D$2,ROW(Aktivitas)-MIN(ROW(Aktivitas))+1),ROWS($B$3:B3)))&CHAR(10),\"\")","v":"Aktivitas 1\nMembuat prototipe\n"},null,{"$f":"IFERROR(INDEX(Aktivitas,SMALL(IF(Target=$F$2,ROW(Aktivitas)-MIN(ROW(Aktivitas))+1),ROWS($B$3:B3)))&CHAR(10),\"\")","v":"Aktivitas 2\nDemo prototipe\n"},null,{"$f":"IFERROR(INDEX(Aktivitas,SMALL(IF(Target=$H$2,ROW(Aktivitas)-MIN(ROW(Aktivitas))+1),ROWS($B$3:B3)))&CHAR(10),\"\")","v":"Aktivitas 7\nPengembangan Pengalihdayaan implementasi tahap pertama\n"}]
[null,{"$f":"IFERROR(INDEX(Aktivitas,SMALL(IF(Target=$B$2,ROW(Aktivitas)-MIN(ROW(Aktivitas))+1),ROWS($B$3:B4)))&\" \"&CHAR(10)&(INDEX(Hasil,SMALL(IF(Target=$B$2,ROW(Hasil)-MIN(ROW(Hasil))+1),ROWS($B$3:B4))))&CHAR(10),\"\")","v":"Aktivitas 3 \nTidak Ada Perubahan\n"},null,{"$f":"IFERROR(INDEX(Aktivitas,SMALL(IF(Target=$D$2,ROW(Aktivitas)-MIN(ROW(Aktivitas))+1),ROWS($B$3:B4)))&CHAR(10),\"\")","v":"Aktivitas 6\n"},null,{"$f":"IFERROR(INDEX(Aktivitas,SMALL(IF(Target=$F$2,ROW(Aktivitas)-MIN(ROW(Aktivitas))+1),ROWS($B$3:B4)))&CHAR(10),\"\")","v":"Aktivitas 8\n"},null,{"$f":"IFERROR(INDEX(Aktivitas,SMALL(IF(Target=$H$2,ROW(Aktivitas)-MIN(ROW(Aktivitas))+1),ROWS($B$3:B4)))&CHAR(10),\"\")","v":"Aktivitas 10\n"}]
[null,{"$f":"IFERROR(INDEX(Aktivitas,SMALL(IF(Target=$B$2,ROW(Aktivitas)-MIN(ROW(Aktivitas))+1),ROWS($B$3:B5)))&\" \"&CHAR(10)&(INDEX(Hasil,SMALL(IF(Target=$B$2,ROW(Hasil)-MIN(ROW(Hasil))+1),ROWS($B$3:B5))))&CHAR(10),\"\")","v":""},null,{"$f":"IFERROR(INDEX(Aktivitas,SMALL(IF(Target=$D$2,ROW(Aktivitas)-MIN(ROW(Aktivitas))+1),ROWS($B$3:B5)))&CHAR(10),\"\")","v":"Aktivitas 5\n"},null,{"$f":"IFERROR(INDEX(Aktivitas,SMALL(IF(Target=$F$2,ROW(Aktivitas)-MIN(ROW(Aktivitas))+1),ROWS($B$3:B5)))&CHAR(10),\"\")","v":""},null,{"$f":"IFERROR(INDEX(Aktivitas,SMALL(IF(Target=$H$2,ROW(Aktivitas)-MIN(ROW(Aktivitas))+1),ROWS($B$3:B5)))&CHAR(10),\"\")","v":"Aktivitas 4\n"}]
[null,{"$f":"IFERROR(INDEX(Aktivitas,SMALL(IF(Target=$B$2,ROW(Aktivitas)-MIN(ROW(Aktivitas))+1),ROWS($B$3:B6)))&\" \"&CHAR(10)&(INDEX(Hasil,SMALL(IF(Target=$B$2,ROW(Hasil)-MIN(ROW(Hasil))+1),ROWS($B$3:B6))))&CHAR(10),\"\")","v":""},null,{"$f":"IFERROR(INDEX(Aktivitas,SMALL(IF(Target=$D$2,ROW(Aktivitas)-MIN(ROW(Aktivitas))+1),ROWS($B$3:B6)))&CHAR(10),\"\")","v":""},null,{"$f":"IFERROR(INDEX(Aktivitas,SMALL(IF(Target=$F$2,ROW(Aktivitas)-MIN(ROW(Aktivitas))+1),ROWS($B$3:B6)))&CHAR(10),\"\")","v":""},null,{"$f":"IFERROR(INDEX(Aktivitas,SMALL(IF(Target=$H$2,ROW(Aktivitas)-MIN(ROW(Aktivitas))+1),ROWS($B$3:B6)))&CHAR(10),\"\")","v":""}]
[null,{"$f":"IFERROR(INDEX(Aktivitas,SMALL(IF(Target=$B$2,ROW(Aktivitas)-MIN(ROW(Aktivitas))+1),ROWS($B$3:B7)))&\" \"&CHAR(10)&(INDEX(Hasil,SMALL(IF(Target=$B$2,ROW(Hasil)-MIN(ROW(Hasil))+1),ROWS($B$3:B7))))&CHAR(10),\"\")","v":""},null,{"$f":"IFERROR(INDEX(Aktivitas,SMALL(IF(Target=$D$2,ROW(Aktivitas)-MIN(ROW(Aktivitas))+1),ROWS($B$3:B7)))&CHAR(10),\"\")","v":""},null,{"$f":"IFERROR(INDEX(Aktivitas,SMALL(IF(Target=$F$2,ROW(Aktivitas)-MIN(ROW(Aktivitas))+1),ROWS($B$3:B7)))&CHAR(10),\"\")","v":""},null,{"$f":"IFERROR(INDEX(Aktivitas,SMALL(IF(Target=$H$2,ROW(Aktivitas)-MIN(ROW(Aktivitas))+1),ROWS($B$3:B7)))&CHAR(10),\"\")","v":""}]
[null,{"$f":"IFERROR(INDEX(Aktivitas,SMALL(IF(Target=$B$2,ROW(Aktivitas)-MIN(ROW(Aktivitas))+1),ROWS($B$3:B8)))&\" \"&CHAR(10)&(INDEX(Hasil,SMALL(IF(Target=$B$2,ROW(Hasil)-MIN(ROW(Hasil))+1),ROWS($B$3:B8))))&CHAR(10),\"\")","v":""},null,{"$f":"IFERROR(INDEX(Aktivitas,SMALL(IF(Target=$D$2,ROW(Aktivitas)-MIN(ROW(Aktivitas))+1),ROWS($B$3:B8)))&CHAR(10),\"\")","v":""},null,{"$f":"IFERROR(INDEX(Aktivitas,SMALL(IF(Target=$F$2,ROW(Aktivitas)-MIN(ROW(Aktivitas))+1),ROWS($B$3:B8)))&CHAR(10),\"\")","v":""},null,{"$f":"IFERROR(INDEX(Aktivitas,SMALL(IF(Target=$H$2,ROW(Aktivitas)-MIN(ROW(Aktivitas))+1),ROWS($B$3:B8)))&CHAR(10),\"\")","v":""}]
[null,{"$f":"IFERROR(INDEX(Aktivitas,SMALL(IF(Target=$B$2,ROW(Aktivitas)-MIN(ROW(Aktivitas))+1),ROWS($B$3:B9)))&\" \"&CHAR(10)&(INDEX(Hasil,SMALL(IF(Target=$B$2,ROW(Hasil)-MIN(ROW(Hasil))+1),ROWS($B$3:B9))))&CHAR(10),\"\")","v":""},null,{"$f":"IFERROR(INDEX(Aktivitas,SMALL(IF(Target=$D$2,ROW(Aktivitas)-MIN(ROW(Aktivitas))+1),ROWS($B$3:B9)))&CHAR(10),\"\")","v":""},null,{"$f":"IFERROR(INDEX(Aktivitas,SMALL(IF(Target=$F$2,ROW(Aktivitas)-MIN(ROW(Aktivitas))+1),ROWS($B$3:B9)))&CHAR(10),\"\")","v":""},null,{"$f":"IFERROR(INDEX(Aktivitas,SMALL(IF(Target=$H$2,ROW(Aktivitas)-MIN(ROW(Aktivitas))+1),ROWS($B$3:B9)))&CHAR(10),\"\")","v":""}]
[null,{"$f":"IFERROR(INDEX(Aktivitas,SMALL(IF(Target=$B$2,ROW(Aktivitas)-MIN(ROW(Aktivitas))+1),ROWS($B$3:B10)))&\" \"&CHAR(10)&(INDEX(Hasil,SMALL(IF(Target=$B$2,ROW(Hasil)-MIN(ROW(Hasil))+1),ROWS($B$3:B10))))&CHAR(10),\"\")","v":""},null,{"$f":"IFERROR(INDEX(Aktivitas,SMALL(IF(Target=$D$2,ROW(Aktivitas)-MIN(ROW(Aktivitas))+1),ROWS($B$3:B10)))&CHAR(10),\"\")","v":""},null,{"$f":"IFERROR(INDEX(Aktivitas,SMALL(IF(Target=$F$2,ROW(Aktivitas)-MIN(ROW(Aktivitas))+1),ROWS($B$3:B10)))&CHAR(10),\"\")","v":""},null,{"$f":"IFERROR(INDEX(Aktivitas,SMALL(IF(Target=$H$2,ROW(Aktivitas)-MIN(ROW(Aktivitas))+1),ROWS($B$3:B10)))&CHAR(10),\"\")","v":""}]
[null,{"$f":"IFERROR(INDEX(Aktivitas,SMALL(IF(Target=$B$2,ROW(Aktivitas)-MIN(ROW(Aktivitas))+1),ROWS($B$3:B11)))&\" \"&CHAR(10)&(INDEX(Hasil,SMALL(IF(Target=$B$2,ROW(Hasil)-MIN(ROW(Hasil))+1),ROWS($B$3:B11))))&CHAR(10),\"\")","v":""},null,{"$f":"IFERROR(INDEX(Aktivitas,SMALL(IF(Target=$D$2,ROW(Aktivitas)-MIN(ROW(Aktivitas))+1),ROWS($B$3:B11)))&CHAR(10),\"\")","v":""},null,{"$f":"IFERROR(INDEX(Aktivitas,SMALL(IF(Target=$F$2,ROW(Aktivitas)-MIN(ROW(Aktivitas))+1),ROWS($B$3:B11)))&CHAR(10),\"\")","v":""},null,{"$f":"IFERROR(INDEX(Aktivitas,SMALL(IF(Target=$H$2,ROW(Aktivitas)-MIN(ROW(Aktivitas))+1),ROWS($B$3:B11)))&CHAR(10),\"\")","v":""}]
[null,{"$f":"IFERROR(INDEX(Aktivitas,SMALL(IF(Target=$B$2,ROW(Aktivitas)-MIN(ROW(Aktivitas))+1),ROWS($B$3:B12)))&\" \"&CHAR(10)&(INDEX(Hasil,SMALL(IF(Target=$B$2,ROW(Hasil)-MIN(ROW(Hasil))+1),ROWS($B$3:B12))))&CHAR(10),\"\")","v":""},null,{"$f":"IFERROR(INDEX(Aktivitas,SMALL(IF(Target=$D$2,ROW(Aktivitas)-MIN(ROW(Aktivitas))+1),ROWS($B$3:B12)))&CHAR(10),\"\")","v":""},null,{"$f":"IFERROR(INDEX(Aktivitas,SMALL(IF(Target=$F$2,ROW(Aktivitas)-MIN(ROW(Aktivitas))+1),ROWS($B$3:B12)))&CHAR(10),\"\")","v":""},null,{"$f":"IFERROR(INDEX(Aktivitas,SMALL(IF(Target=$H$2,ROW(Aktivitas)-MIN(ROW(Aktivitas))+1),ROWS($B$3:B12)))&CHAR(10),\"\")","v":""}]
[null,{"$f":"IFERROR(INDEX(Aktivitas,SMALL(IF(Target=$B$2,ROW(Aktivitas)-MIN(ROW(Aktivitas))+1),ROWS($B$3:B13)))&\" \"&CHAR(10)&(INDEX(Hasil,SMALL(IF(Target=$B$2,ROW(Hasil)-MIN(ROW(Hasil))+1),ROWS($B$3:B13))))&CHAR(10),\"\")","v":""},null,{"$f":"IFERROR(INDEX(Aktivitas,SMALL(IF(Target=$D$2,ROW(Aktivitas)-MIN(ROW(Aktivitas))+1),ROWS($B$3:B13)))&CHAR(10),\"\")","v":""},null,{"$f":"IFERROR(INDEX(Aktivitas,SMALL(IF(Target=$F$2,ROW(Aktivitas)-MIN(ROW(Aktivitas))+1),ROWS($B$3:B13)))&CHAR(10),\"\")","v":""},null,{"$f":"IFERROR(INDEX(Aktivitas,SMALL(IF(Target=$H$2,ROW(Aktivitas)-MIN(ROW(Aktivitas))+1),ROWS($B$3:B13)))&CHAR(10),\"\")","v":""}]
[null,{"$f":"IFERROR(INDEX(Aktivitas,SMALL(IF(Target=$B$2,ROW(Aktivitas)-MIN(ROW(Aktivitas))+1),ROWS($B$3:B14)))&\" \"&CHAR(10)&(INDEX(Hasil,SMALL(IF(Target=$B$2,ROW(Hasil)-MIN(ROW(Hasil))+1),ROWS($B$3:B14))))&CHAR(10),\"\")","v":""},null,{"$f":"IFERROR(INDEX(Aktivitas,SMALL(IF(Target=$D$2,ROW(Aktivitas)-MIN(ROW(Aktivitas))+1),ROWS($B$3:B14)))&CHAR(10),\"\")","v":""},null,{"$f":"IFERROR(INDEX(Aktivitas,SMALL(IF(Target=$F$2,ROW(Aktivitas)-MIN(ROW(Aktivitas))+1),ROWS($B$3:B14)))&CHAR(10),\"\")","v":""},null,{"$f":"IFERROR(INDEX(Aktivitas,SMALL(IF(Target=$H$2,ROW(Aktivitas)-MIN(ROW(Aktivitas))+1),ROWS($B$3:B14)))&CHAR(10),\"\")","v":""}]
[null,{"$f":"IFERROR(INDEX(Aktivitas,SMALL(IF(Target=$B$2,ROW(Aktivitas)-MIN(ROW(Aktivitas))+1),ROWS($B$3:B15)))&\" \"&CHAR(10)&(INDEX(Hasil,SMALL(IF(Target=$B$2,ROW(Hasil)-MIN(ROW(Hasil))+1),ROWS($B$3:B15))))&CHAR(10),\"\")","v":""},null,{"$f":"IFERROR(INDEX(Aktivitas,SMALL(IF(Target=$D$2,ROW(Aktivitas)-MIN(ROW(Aktivitas))+1),ROWS($B$3:B15)))&CHAR(10),\"\")","v":""},null,{"$f":"IFERROR(INDEX(Aktivitas,SMALL(IF(Target=$F$2,ROW(Aktivitas)-MIN(ROW(Aktivitas))+1),ROWS($B$3:B15)))&CHAR(10),\"\")","v":""},null,{"$f":"IFERROR(INDEX(Aktivitas,SMALL(IF(Target=$H$2,ROW(Aktivitas)-MIN(ROW(Aktivitas))+1),ROWS($B$3:B15)))&CHAR(10),\"\")","v":""}]
[null,{"$f":"IFERROR(INDEX(Aktivitas,SMALL(IF(Target=$B$2,ROW(Aktivitas)-MIN(ROW(Aktivitas))+1),ROWS($B$3:B16)))&\" \"&CHAR(10)&(INDEX(Hasil,SMALL(IF(Target=$B$2,ROW(Hasil)-MIN(ROW(Hasil))+1),ROWS($B$3:B16))))&CHAR(10),\"\")","v":""},null,{"$f":"IFERROR(INDEX(Aktivitas,SMALL(IF(Target=$D$2,ROW(Aktivitas)-MIN(ROW(Aktivitas))+1),ROWS($B$3:B16)))&CHAR(10),\"\")","v":""},null,{"$f":"IFERROR(INDEX(Aktivitas,SMALL(IF(Target=$F$2,ROW(Aktivitas)-MIN(ROW(Aktivitas))+1),ROWS($B$3:B16)))&CHAR(10),\"\")","v":""},null,{"$f":"IFERROR(INDEX(Aktivitas,SMALL(IF(Target=$H$2,ROW(Aktivitas)-MIN(ROW(Aktivitas))+1),ROWS($B$3:B16)))&CHAR(10),\"\")","v":""}]
[null,{"$f":"IFERROR(INDEX(Aktivitas,SMALL(IF(Target=$B$2,ROW(Aktivitas)-MIN(ROW(Aktivitas))+1),ROWS($B$3:B17)))&\" \"&CHAR(10)&(INDEX(Hasil,SMALL(IF(Target=$B$2,ROW(Hasil)-MIN(ROW(Hasil))+1),ROWS($B$3:B17))))&CHAR(10),\"\")","v":""},null,{"$f":"IFERROR(INDEX(Aktivitas,SMALL(IF(Target=$D$2,ROW(Aktivitas)-MIN(ROW(Aktivitas))+1),ROWS($B$3:B17)))&CHAR(10),\"\")","v":""},null,{"$f":"IFERROR(INDEX(Aktivitas,SMALL(IF(Target=$F$2,ROW(Aktivitas)-MIN(ROW(Aktivitas))+1),ROWS($B$3:B17)))&CHAR(10),\"\")","v":""},null,{"$f":"IFERROR(INDEX(Aktivitas,SMALL(IF(Target=$H$2,ROW(Aktivitas)-MIN(ROW(Aktivitas))+1),ROWS($B$3:B17)))&CHAR(10),\"\")","v":""}]
[null,{"$f":"IFERROR(INDEX(Aktivitas,SMALL(IF(Target=$B$2,ROW(Aktivitas)-MIN(ROW(Aktivitas))+1),ROWS($B$3:B18)))&\" \"&CHAR(10)&(INDEX(Hasil,SMALL(IF(Target=$B$2,ROW(Hasil)-MIN(ROW(Hasil))+1),ROWS($B$3:B18))))&CHAR(10),\"\")","v":""},null,{"$f":"IFERROR(INDEX(Aktivitas,SMALL(IF(Target=$D$2,ROW(Aktivitas)-MIN(ROW(Aktivitas))+1),ROWS($B$3:B18)))&CHAR(10),\"\")","v":""},null,{"$f":"IFERROR(INDEX(Aktivitas,SMALL(IF(Target=$F$2,ROW(Aktivitas)-MIN(ROW(Aktivitas))+1),ROWS($B$3:B18)))&CHAR(10),\"\")","v":""},null,{"$f":"IFERROR(INDEX(Aktivitas,SMALL(IF(Target=$H$2,ROW(Aktivitas)-MIN(ROW(Aktivitas))+1),ROWS($B$3:B18)))&CHAR(10),\"\")","v":""}]
[null,{"$f":"IFERROR(INDEX(Aktivitas,SMALL(IF(Target=$B$2,ROW(Aktivitas)-MIN(ROW(Aktivitas))+1),ROWS($B$3:B19)))&\" \"&CHAR(10)&(INDEX(Hasil,SMALL(IF(Target=$B$2,ROW(Hasil)-MIN(ROW(Hasil))+1),ROWS($B$3:B19))))&CHAR(10),\"\")","v":""},null,{"$f":"IFERROR(INDEX(Aktivitas,SMALL(IF(Target=$D$2,ROW(Aktivitas)-MIN(ROW(Aktivitas))+1),ROWS($B$3:B19)))&CHAR(10),\"\")","v":""},null,{"$f":"IFERROR(INDEX(Aktivitas,SMALL(IF(Target=$F$2,ROW(Aktivitas)-MIN(ROW(Aktivitas))+1),ROWS($B$3:B19)))&CHAR(10),\"\")","v":""},null,{"$f":"IFERROR(INDEX(Aktivitas,SMALL(IF(Target=$H$2,ROW(Aktivitas)-MIN(ROW(Aktivitas))+1),ROWS($B$3:B19)))&CHAR(10),\"\")","v":""}]
[null,{"$f":"IFERROR(INDEX(Aktivitas,SMALL(IF(Target=$B$2,ROW(Aktivitas)-MIN(ROW(Aktivitas))+1),ROWS($B$3:B20)))&\" \"&CHAR(10)&(INDEX(Hasil,SMALL(IF(Target=$B$2,ROW(Hasil)-MIN(ROW(Hasil))+1),ROWS($B$3:B20))))&CHAR(10),\"\")","v":""},null,{"$f":"IFERROR(INDEX(Aktivitas,SMALL(IF(Target=$D$2,ROW(Aktivitas)-MIN(ROW(Aktivitas))+1),ROWS($B$3:B20)))&CHAR(10),\"\")","v":""},null,{"$f":"IFERROR(INDEX(Aktivitas,SMALL(IF(Target=$F$2,ROW(Aktivitas)-MIN(ROW(Aktivitas))+1),ROWS($B$3:B20)))&CHAR(10),\"\")","v":""},null,{"$f":"IFERROR(INDEX(Aktivitas,SMALL(IF(Target=$H$2,ROW(Aktivitas)-MIN(ROW(Aktivitas))+1),ROWS($B$3:B20)))&CHAR(10),\"\")","v":""}]
[null,{"$f":"IFERROR(INDEX(Aktivitas,SMALL(IF(Target=$B$2,ROW(Aktivitas)-MIN(ROW(Aktivitas))+1),ROWS($B$3:B21)))&\" \"&CHAR(10)&(INDEX(Hasil,SMALL(IF(Target=$B$2,ROW(Hasil)-MIN(ROW(Hasil))+1),ROWS($B$3:B21))))&CHAR(10),\"\")","v":""},null,{"$f":"IFERROR(INDEX(Aktivitas,SMALL(IF(Target=$D$2,ROW(Aktivitas)-MIN(ROW(Aktivitas))+1),ROWS($B$3:B21)))&CHAR(10),\"\")","v":""},null,{"$f":"IFERROR(INDEX(Aktivitas,SMALL(IF(Target=$F$2,ROW(Aktivitas)-MIN(ROW(Aktivitas))+1),ROWS($B$3:B21)))&CHAR(10),\"\")","v":""},null,{"$f":"IFERROR(INDEX(Aktivitas,SMALL(IF(Target=$H$2,ROW(Aktivitas)-MIN(ROW(Aktivitas))+1),ROWS($B$3:B21)))&CHAR(10),\"\")","v":""}]
[null,{"$f":"IFERROR(INDEX(Aktivitas,SMALL(IF(Target=$B$2,ROW(Aktivitas)-MIN(ROW(Aktivitas))+1),ROWS($B$3:B22)))&\" \"&CHAR(10)&(INDEX(Hasil,SMALL(IF(Target=$B$2,ROW(Hasil)-MIN(ROW(Hasil))+1),ROWS($B$3:B22))))&CHAR(10),\"\")","v":""},null,{"$f":"IFERROR(INDEX(Aktivitas,SMALL(IF(Target=$D$2,ROW(Aktivitas)-MIN(ROW(Aktivitas))+1),ROWS($B$3:B22)))&CHAR(10),\"\")","v":""},null,{"$f":"IFERROR(INDEX(Aktivitas,SMALL(IF(Target=$F$2,ROW(Aktivitas)-MIN(ROW(Aktivitas))+1),ROWS($B$3:B22)))&CHAR(10),\"\")","v":""},null,{"$f":"IFERROR(INDEX(Aktivitas,SMALL(IF(Target=$H$2,ROW(Aktivitas)-MIN(ROW(Aktivitas))+1),ROWS($B$3:B22)))&CHAR(10),\"\")","v":""}]
[null,{"$f":"IFERROR(INDEX(Aktivitas,SMALL(IF(Target=$B$2,ROW(Aktivitas)-MIN(ROW(Aktivitas))+1),ROWS($B$3:B23)))&\" \"&CHAR(10)&(INDEX(Hasil,SMALL(IF(Target=$B$2,ROW(Hasil)-MIN(ROW(Hasil))+1),ROWS($B$3:B23))))&CHAR(10),\"\")","v":""},null,{"$f":"IFERROR(INDEX(Aktivitas,SMALL(IF(Target=$D$2,ROW(Aktivitas)-MIN(ROW(Aktivitas))+1),ROWS($B$3:B23)))&CHAR(10),\"\")","v":""},null,{"$f":"IFERROR(INDEX(Aktivitas,SMALL(IF(Target=$F$2,ROW(Aktivitas)-MIN(ROW(Aktivitas))+1),ROWS($B$3:B23)))&CHAR(10),\"\")","v":""},null,{"$f":"IFERROR(INDEX(Aktivitas,SMALL(IF(Target=$H$2,ROW(Aktivitas)-MIN(ROW(Aktivitas))+1),ROWS($B$3:B23)))&CHAR(10),\"\")","v":""}]
[null,{"$f":"IFERROR(INDEX(Aktivitas,SMALL(IF(Target=$B$2,ROW(Aktivitas)-MIN(ROW(Aktivitas))+1),ROWS($B$3:B24)))&\" \"&CHAR(10)&(INDEX(Hasil,SMALL(IF(Target=$B$2,ROW(Hasil)-MIN(ROW(Hasil))+1),ROWS($B$3:B24))))&CHAR(10),\"\")","v":""},null,{"$f":"IFERROR(INDEX(Aktivitas,SMALL(IF(Target=$D$2,ROW(Aktivitas)-MIN(ROW(Aktivitas))+1),ROWS($B$3:B24)))&CHAR(10),\"\")","v":""},null,{"$f":"IFERROR(INDEX(Aktivitas,SMALL(IF(Target=$F$2,ROW(Aktivitas)-MIN(ROW(Aktivitas))+1),ROWS($B$3:B24)))&CHAR(10),\"\")","v":""},null,{"$f":"IFERROR(INDEX(Aktivitas,SMALL(IF(Target=$H$2,ROW(Aktivitas)-MIN(ROW(Aktivitas))+1),ROWS($B$3:B24)))&CHAR(10),\"\")","v":""}]
[null,{"$f":"IFERROR(INDEX(Aktivitas,SMALL(IF(Target=$B$2,ROW(Aktivitas)-MIN(ROW(Aktivitas))+1),ROWS($B$3:B25)))&\" \"&CHAR(10)&(INDEX(Hasil,SMALL(IF(Target=$B$2,ROW(Hasil)-MIN(ROW(Hasil))+1),ROWS($B$3:B25))))&CHAR(10),\"\")","v":""},null,{"$f":"IFERROR(INDEX(Aktivitas,SMALL(IF(Target=$D$2,ROW(Aktivitas)-MIN(ROW(Aktivitas))+1),ROWS($B$3:B25)))&CHAR(10),\"\")","v":""},null,{"$f":"IFERROR(INDEX(Aktivitas,SMALL(IF(Target=$F$2,ROW(Aktivitas)-MIN(ROW(Aktivitas))+1),ROWS($B$3:B25)))&CHAR(10),\"\")","v":""},null,{"$f":"IFERROR(INDEX(Aktivitas,SMALL(IF(Target=$H$2,ROW(Aktivitas)-MIN(ROW(Aktivitas))+1),ROWS($B$3:B25)))&CHAR(10),\"\")","v":""}]
[null,{"$f":"IFERROR(INDEX(Aktivitas,SMALL(IF(Target=$B$2,ROW(Aktivitas)-MIN(ROW(Aktivitas))+1),ROWS($B$3:B26)))&\" \"&CHAR(10)&(INDEX(Hasil,SMALL(IF(Target=$B$2,ROW(Hasil)-MIN(ROW(Hasil))+1),ROWS($B$3:B26))))&CHAR(10),\"\")","v":""},null,{"$f":"IFERROR(INDEX(Aktivitas,SMALL(IF(Target=$D$2,ROW(Aktivitas)-MIN(ROW(Aktivitas))+1),ROWS($B$3:B26)))&CHAR(10),\"\")","v":""},null,{"$f":"IFERROR(INDEX(Aktivitas,SMALL(IF(Target=$F$2,ROW(Aktivitas)-MIN(ROW(Aktivitas))+1),ROWS($B$3:B26)))&CHAR(10),\"\")","v":""},null,{"$f":"IFERROR(INDEX(Aktivitas,SMALL(IF(Target=$H$2,ROW(Aktivitas)-MIN(ROW(Aktivitas))+1),ROWS($B$3:B26)))&CHAR(10),\"\")","v":""}]
[null,{"$f":"IFERROR(INDEX(Aktivitas,SMALL(IF(Target=$B$2,ROW(Aktivitas)-MIN(ROW(Aktivitas))+1),ROWS($B$3:B27)))&\" \"&CHAR(10)&(INDEX(Hasil,SMALL(IF(Target=$B$2,ROW(Hasil)-MIN(ROW(Hasil))+1),ROWS($B$3:B27))))&CHAR(10),\"\")","v":""},null,{"$f":"IFERROR(INDEX(Aktivitas,SMALL(IF(Target=$D$2,ROW(Aktivitas)-MIN(ROW(Aktivitas))+1),ROWS($B$3:B27)))&CHAR(10),\"\")","v":""},null,{"$f":"IFERROR(INDEX(Aktivitas,SMALL(IF(Target=$F$2,ROW(Aktivitas)-MIN(ROW(Aktivitas))+1),ROWS($B$3:B27)))&CHAR(10),\"\")","v":""},null,{"$f":"IFERROR(INDEX(Aktivitas,SMALL(IF(Target=$H$2,ROW(Aktivitas)-MIN(ROW(Aktivitas))+1),ROWS($B$3:B27)))&CHAR(10),\"\")","v":""}]
[null,{"$f":"IFERROR(INDEX(Aktivitas,SMALL(IF(Target=$B$2,ROW(Aktivitas)-MIN(ROW(Aktivitas))+1),ROWS($B$3:B28)))&\" \"&CHAR(10)&(INDEX(Hasil,SMALL(IF(Target=$B$2,ROW(Hasil)-MIN(ROW(Hasil))+1),ROWS($B$3:B28))))&CHAR(10),\"\")","v":""},null,{"$f":"IFERROR(INDEX(Aktivitas,SMALL(IF(Target=$D$2,ROW(Aktivitas)-MIN(ROW(Aktivitas))+1),ROWS($B$3:B28)))&CHAR(10),\"\")","v":""},null,{"$f":"IFERROR(INDEX(Aktivitas,SMALL(IF(Target=$F$2,ROW(Aktivitas)-MIN(ROW(Aktivitas))+1),ROWS($B$3:B28)))&CHAR(10),\"\")","v":""},null,{"$f":"IFERROR(INDEX(Aktivitas,SMALL(IF(Target=$H$2,ROW(Aktivitas)-MIN(ROW(Aktivitas))+1),ROWS($B$3:B28)))&CHAR(10),\"\")","v":""}]
[null,{"$f":"IFERROR(INDEX(Aktivitas,SMALL(IF(Target=$B$2,ROW(Aktivitas)-MIN(ROW(Aktivitas))+1),ROWS($B$3:B29)))&\" \"&CHAR(10)&(INDEX(Hasil,SMALL(IF(Target=$B$2,ROW(Hasil)-MIN(ROW(Hasil))+1),ROWS($B$3:B29))))&CHAR(10),\"\")","v":""},null,{"$f":"IFERROR(INDEX(Aktivitas,SMALL(IF(Target=$D$2,ROW(Aktivitas)-MIN(ROW(Aktivitas))+1),ROWS($B$3:B29)))&CHAR(10),\"\")","v":""},null,{"$f":"IFERROR(INDEX(Aktivitas,SMALL(IF(Target=$F$2,ROW(Aktivitas)-MIN(ROW(Aktivitas))+1),ROWS($B$3:B29)))&CHAR(10),\"\")","v":""},null,{"$f":"IFERROR(INDEX(Aktivitas,SMALL(IF(Target=$H$2,ROW(Aktivitas)-MIN(ROW(Aktivitas))+1),ROWS($B$3:B29)))&CHAR(10),\"\")","v":""}]
[null,{"$f":"IFERROR(INDEX(Aktivitas,SMALL(IF(Target=$B$2,ROW(Aktivitas)-MIN(ROW(Aktivitas))+1),ROWS($B$3:B30)))&\" \"&CHAR(10)&(INDEX(Hasil,SMALL(IF(Target=$B$2,ROW(Hasil)-MIN(ROW(Hasil))+1),ROWS($B$3:B30))))&CHAR(10),\"\")","v":""},null,{"$f":"IFERROR(INDEX(Aktivitas,SMALL(IF(Target=$D$2,ROW(Aktivitas)-MIN(ROW(Aktivitas))+1),ROWS($B$3:B30)))&CHAR(10),\"\")","v":""},null,{"$f":"IFERROR(INDEX(Aktivitas,SMALL(IF(Target=$F$2,ROW(Aktivitas)-MIN(ROW(Aktivitas))+1),ROWS($B$3:B30)))&CHAR(10),\"\")","v":""},null,{"$f":"IFERROR(INDEX(Aktivitas,SMALL(IF(Target=$H$2,ROW(Aktivitas)-MIN(ROW(Aktivitas))+1),ROWS($B$3:B30)))&CHAR(10),\"\")","v":""}]
[null,{"$f":"IFERROR(INDEX(Aktivitas,SMALL(IF(Target=$B$2,ROW(Aktivitas)-MIN(ROW(Aktivitas))+1),ROWS($B$3:B31)))&\" \"&CHAR(10)&(INDEX(Hasil,SMALL(IF(Target=$B$2,ROW(Hasil)-MIN(ROW(Hasil))+1),ROWS($B$3:B31))))&CHAR(10),\"\")","v":""},null,{"$f":"IFERROR(INDEX(Aktivitas,SMALL(IF(Target=$D$2,ROW(Aktivitas)-MIN(ROW(Aktivitas))+1),ROWS($B$3:B31)))&CHAR(10),\"\")","v":""},null,{"$f":"IFERROR(INDEX(Aktivitas,SMALL(IF(Target=$F$2,ROW(Aktivitas)-MIN(ROW(Aktivitas))+1),ROWS($B$3:B31)))&CHAR(10),\"\")","v":""},null,{"$f":"IFERROR(INDEX(Aktivitas,SMALL(IF(Target=$H$2,ROW(Aktivitas)-MIN(ROW(Aktivitas))+1),ROWS($B$3:B31)))&CHAR(10),\"\")","v":""}]
[null,{"$f":"IFERROR(INDEX(Aktivitas,SMALL(IF(Target=$B$2,ROW(Aktivitas)-MIN(ROW(Aktivitas))+1),ROWS($B$3:B32)))&\" \"&CHAR(10)&(INDEX(Hasil,SMALL(IF(Target=$B$2,ROW(Hasil)-MIN(ROW(Hasil))+1),ROWS($B$3:B32))))&CHAR(10),\"\")","v":""},null,{"$f":"IFERROR(INDEX(Aktivitas,SMALL(IF(Target=$D$2,ROW(Aktivitas)-MIN(ROW(Aktivitas))+1),ROWS($B$3:B32)))&CHAR(10),\"\")","v":""},null,{"$f":"IFERROR(INDEX(Aktivitas,SMALL(IF(Target=$F$2,ROW(Aktivitas)-MIN(ROW(Aktivitas))+1),ROWS($B$3:B32)))&CHAR(10),\"\")","v":""},null,{"$f":"IFERROR(INDEX(Aktivitas,SMALL(IF(Target=$H$2,ROW(Aktivitas)-MIN(ROW(Aktivitas))+1),ROWS($B$3:B32)))&CHAR(10),\"\")","v":""}]
[null,{"$f":"IFERROR(INDEX(Aktivitas,SMALL(IF(Target=$B$2,ROW(Aktivitas)-MIN(ROW(Aktivitas))+1),ROWS($B$3:B33)))&\" \"&CHAR(10)&(INDEX(Hasil,SMALL(IF(Target=$B$2,ROW(Hasil)-MIN(ROW(Hasil))+1),ROWS($B$3:B33))))&CHAR(10),\"\")","v":""},null,{"$f":"IFERROR(INDEX(Aktivitas,SMALL(IF(Target=$D$2,ROW(Aktivitas)-MIN(ROW(Aktivitas))+1),ROWS($B$3:B33)))&CHAR(10),\"\")","v":""},null,{"$f":"IFERROR(INDEX(Aktivitas,SMALL(IF(Target=$F$2,ROW(Aktivitas)-MIN(ROW(Aktivitas))+1),ROWS($B$3:B33)))&CHAR(10),\"\")","v":""},null,{"$f":"IFERROR(INDEX(Aktivitas,SMALL(IF(Target=$H$2,ROW(Aktivitas)-MIN(ROW(Aktivitas))+1),ROWS($B$3:B33)))&CHAR(10),\"\")","v":""}]
[null,{"$f":"IFERROR(INDEX(Aktivitas,SMALL(IF(Target=$B$2,ROW(Aktivitas)-MIN(ROW(Aktivitas))+1),ROWS($B$3:B34)))&\" \"&CHAR(10)&(INDEX(Hasil,SMALL(IF(Target=$B$2,ROW(Hasil)-MIN(ROW(Hasil))+1),ROWS($B$3:B34))))&CHAR(10),\"\")","v":""},null,{"$f":"IFERROR(INDEX(Aktivitas,SMALL(IF(Target=$D$2,ROW(Aktivitas)-MIN(ROW(Aktivitas))+1),ROWS($B$3:B34)))&CHAR(10),\"\")","v":""},null,{"$f":"IFERROR(INDEX(Aktivitas,SMALL(IF(Target=$F$2,ROW(Aktivitas)-MIN(ROW(Aktivitas))+1),ROWS($B$3:B34)))&CHAR(10),\"\")","v":""},null,{"$f":"IFERROR(INDEX(Aktivitas,SMALL(IF(Target=$H$2,ROW(Aktivitas)-MIN(ROW(Aktivitas))+1),ROWS($B$3:B34)))&CHAR(10),\"\")","v":""}]
[null,{"$f":"IFERROR(INDEX(Aktivitas,SMALL(IF(Target=$B$2,ROW(Aktivitas)-MIN(ROW(Aktivitas))+1),ROWS($B$3:B35)))&\" \"&CHAR(10)&(INDEX(Hasil,SMALL(IF(Target=$B$2,ROW(Hasil)-MIN(ROW(Hasil))+1),ROWS($B$3:B35))))&CHAR(10),\"\")","v":""},null,{"$f":"IFERROR(INDEX(Aktivitas,SMALL(IF(Target=$D$2,ROW(Aktivitas)-MIN(ROW(Aktivitas))+1),ROWS($B$3:B35)))&CHAR(10),\"\")","v":""},null,{"$f":"IFERROR(INDEX(Aktivitas,SMALL(IF(Target=$F$2,ROW(Aktivitas)-MIN(ROW(Aktivitas))+1),ROWS($B$3:B35)))&CHAR(10),\"\")","v":""},null,{"$f":"IFERROR(INDEX(Aktivitas,SMALL(IF(Target=$H$2,ROW(Aktivitas)-MIN(ROW(Aktivitas))+1),ROWS($B$3:B35)))&CHAR(10),\"\")","v":""}]
[null,{"$f":"IFERROR(INDEX(Aktivitas,SMALL(IF(Target=$B$2,ROW(Aktivitas)-MIN(ROW(Aktivitas))+1),ROWS($B$3:B36)))&\" \"&CHAR(10)&(INDEX(Hasil,SMALL(IF(Target=$B$2,ROW(Hasil)-MIN(ROW(Hasil))+1),ROWS($B$3:B36))))&CHAR(10),\"\")","v":""},null,{"$f":"IFERROR(INDEX(Aktivitas,SMALL(IF(Target=$D$2,ROW(Aktivitas)-MIN(ROW(Aktivitas))+1),ROWS($B$3:B36)))&CHAR(10),\"\")","v":""},null,{"$f":"IFERROR(INDEX(Aktivitas,SMALL(IF(Target=$F$2,ROW(Aktivitas)-MIN(ROW(Aktivitas))+1),ROWS($B$3:B36)))&CHAR(10),\"\")","v":""},null,{"$f":"IFERROR(INDEX(Aktivitas,SMALL(IF(Target=$H$2,ROW(Aktivitas)-MIN(ROW(Aktivitas))+1),ROWS($B$3:B36)))&CHAR(10),\"\")","v":""}]
[null,{"$f":"IFERROR(INDEX(Aktivitas,SMALL(IF(Target=$B$2,ROW(Aktivitas)-MIN(ROW(Aktivitas))+1),ROWS($B$3:B37)))&\" \"&CHAR(10)&(INDEX(Hasil,SMALL(IF(Target=$B$2,ROW(Hasil)-MIN(ROW(Hasil))+1),ROWS($B$3:B37))))&CHAR(10),\"\")","v":""},null,{"$f":"IFERROR(INDEX(Aktivitas,SMALL(IF(Target=$D$2,ROW(Aktivitas)-MIN(ROW(Aktivitas))+1),ROWS($B$3:B37)))&CHAR(10),\"\")","v":""},null,{"$f":"IFERROR(INDEX(Aktivitas,SMALL(IF(Target=$F$2,ROW(Aktivitas)-MIN(ROW(Aktivitas))+1),ROWS($B$3:B37)))&CHAR(10),\"\")","v":""},null,{"$f":"IFERROR(INDEX(Aktivitas,SMALL(IF(Target=$H$2,ROW(Aktivitas)-MIN(ROW(Aktivitas))+1),ROWS($B$3:B37)))&CHAR(10),\"\")","v":""}]
[null,{"$f":"IFERROR(INDEX(Aktivitas,SMALL(IF(Target=$B$2,ROW(Aktivitas)-MIN(ROW(Aktivitas))+1),ROWS($B$3:B38)))&\" \"&CHAR(10)&(INDEX(Hasil,SMALL(IF(Target=$B$2,ROW(Hasil)-MIN(ROW(Hasil))+1),ROWS($B$3:B38))))&CHAR(10),\"\")","v":""},null,{"$f":"IFERROR(INDEX(Aktivitas,SMALL(IF(Target=$D$2,ROW(Aktivitas)-MIN(ROW(Aktivitas))+1),ROWS($B$3:B38)))&CHAR(10),\"\")","v":""},null,{"$f":"IFERROR(INDEX(Aktivitas,SMALL(IF(Target=$F$2,ROW(Aktivitas)-MIN(ROW(Aktivitas))+1),ROWS($B$3:B38)))&CHAR(10),\"\")","v":""},null,{"$f":"IFERROR(INDEX(Aktivitas,SMALL(IF(Target=$H$2,ROW(Aktivitas)-MIN(ROW(Aktivitas))+1),ROWS($B$3:B38)))&CHAR(10),\"\")","v":""}]
[null,{"$f":"IFERROR(INDEX(Aktivitas,SMALL(IF(Target=$B$2,ROW(Aktivitas)-MIN(ROW(Aktivitas))+1),ROWS($B$3:B39)))&\" \"&CHAR(10)&(INDEX(Hasil,SMALL(IF(Target=$B$2,ROW(Hasil)-MIN(ROW(Hasil))+1),ROWS($B$3:B39))))&CHAR(10),\"\")","v":""},null,{"$f":"IFERROR(INDEX(Aktivitas,SMALL(IF(Target=$D$2,ROW(Aktivitas)-MIN(ROW(Aktivitas))+1),ROWS($B$3:B39)))&CHAR(10),\"\")","v":""},null,{"$f":"IFERROR(INDEX(Aktivitas,SMALL(IF(Target=$F$2,ROW(Aktivitas)-MIN(ROW(Aktivitas))+1),ROWS($B$3:B39)))&CHAR(10),\"\")","v":""},null,{"$f":"IFERROR(INDEX(Aktivitas,SMALL(IF(Target=$H$2,ROW(Aktivitas)-MIN(ROW(Aktivitas))+1),ROWS($B$3:B39)))&CHAR(10),\"\")","v":""}]
[null,{"$f":"IFERROR(INDEX(Aktivitas,SMALL(IF(Target=$B$2,ROW(Aktivitas)-MIN(ROW(Aktivitas))+1),ROWS($B$3:B40)))&\" \"&CHAR(10)&(INDEX(Hasil,SMALL(IF(Target=$B$2,ROW(Hasil)-MIN(ROW(Hasil))+1),ROWS($B$3:B40))))&CHAR(10),\"\")","v":""},null,{"$f":"IFERROR(INDEX(Aktivitas,SMALL(IF(Target=$D$2,ROW(Aktivitas)-MIN(ROW(Aktivitas))+1),ROWS($B$3:B40)))&CHAR(10),\"\")","v":""},null,{"$f":"IFERROR(INDEX(Aktivitas,SMALL(IF(Target=$F$2,ROW(Aktivitas)-MIN(ROW(Aktivitas))+1),ROWS($B$3:B40)))&CHAR(10),\"\")","v":""},null,{"$f":"IFERROR(INDEX(Aktivitas,SMALL(IF(Target=$H$2,ROW(Aktivitas)-MIN(ROW(Aktivitas))+1),ROWS($B$3:B40)))&CHAR(10),\"\")","v":""}]
[null,{"$f":"IFERROR(INDEX(Aktivitas,SMALL(IF(Target=$B$2,ROW(Aktivitas)-MIN(ROW(Aktivitas))+1),ROWS($B$3:B41)))&\" \"&CHAR(10)&(INDEX(Hasil,SMALL(IF(Target=$B$2,ROW(Hasil)-MIN(ROW(Hasil))+1),ROWS($B$3:B41))))&CHAR(10),\"\")","v":""},null,{"$f":"IFERROR(INDEX(Aktivitas,SMALL(IF(Target=$D$2,ROW(Aktivitas)-MIN(ROW(Aktivitas))+1),ROWS($B$3:B41)))&CHAR(10),\"\")","v":""},null,{"$f":"IFERROR(INDEX(Aktivitas,SMALL(IF(Target=$F$2,ROW(Aktivitas)-MIN(ROW(Aktivitas))+1),ROWS($B$3:B41)))&CHAR(10),\"\")","v":""},null,{"$f":"IFERROR(INDEX(Aktivitas,SMALL(IF(Target=$H$2,ROW(Aktivitas)-MIN(ROW(Aktivitas))+1),ROWS($B$3:B41)))&CHAR(10),\"\")","v":""}]
[null,{"$f":"IFERROR(INDEX(Aktivitas,SMALL(IF(Target=$B$2,ROW(Aktivitas)-MIN(ROW(Aktivitas))+1),ROWS($B$3:B42)))&\" \"&CHAR(10)&(INDEX(Hasil,SMALL(IF(Target=$B$2,ROW(Hasil)-MIN(ROW(Hasil))+1),ROWS($B$3:B42))))&CHAR(10),\"\")","v":""},null,{"$f":"IFERROR(INDEX(Aktivitas,SMALL(IF(Target=$D$2,ROW(Aktivitas)-MIN(ROW(Aktivitas))+1),ROWS($B$3:B42)))&CHAR(10),\"\")","v":""},null,{"$f":"IFERROR(INDEX(Aktivitas,SMALL(IF(Target=$F$2,ROW(Aktivitas)-MIN(ROW(Aktivitas))+1),ROWS($B$3:B42)))&CHAR(10),\"\")","v":""},null,{"$f":"IFERROR(INDEX(Aktivitas,SMALL(IF(Target=$H$2,ROW(Aktivitas)-MIN(ROW(Aktivitas))+1),ROWS($B$3:B42)))&CHAR(10),\"\")","v":""}]
[null,{"$f":"IFERROR(INDEX(Aktivitas,SMALL(IF(Target=$B$2,ROW(Aktivitas)-MIN(ROW(Aktivitas))+1),ROWS($B$3:B43)))&\" \"&CHAR(10)&(INDEX(Hasil,SMALL(IF(Target=$B$2,ROW(Hasil)-MIN(ROW(Hasil))+1),ROWS($B$3:B43))))&CHAR(10),\"\")","v":""},null,{"$f":"IFERROR(INDEX(Aktivitas,SMALL(IF(Target=$D$2,ROW(Aktivitas)-MIN(ROW(Aktivitas))+1),ROWS($B$3:B43)))&CHAR(10),\"\")","v":""},null,{"$f":"IFERROR(INDEX(Aktivitas,SMALL(IF(Target=$F$2,ROW(Aktivitas)-MIN(ROW(Aktivitas))+1),ROWS($B$3:B43)))&CHAR(10),\"\")","v":""},null,{"$f":"IFERROR(INDEX(Aktivitas,SMALL(IF(Target=$H$2,ROW(Aktivitas)-MIN(ROW(Aktivitas))+1),ROWS($B$3:B43)))&CHAR(10),\"\")","v":""}]
[null,{"$f":"IFERROR(INDEX(Aktivitas,SMALL(IF(Target=$B$2,ROW(Aktivitas)-MIN(ROW(Aktivitas))+1),ROWS($B$3:B44)))&\" \"&CHAR(10)&(INDEX(Hasil,SMALL(IF(Target=$B$2,ROW(Hasil)-MIN(ROW(Hasil))+1),ROWS($B$3:B44))))&CHAR(10),\"\")","v":""},null,{"$f":"IFERROR(INDEX(Aktivitas,SMALL(IF(Target=$D$2,ROW(Aktivitas)-MIN(ROW(Aktivitas))+1),ROWS($B$3:B44)))&CHAR(10),\"\")","v":""},null,{"$f":"IFERROR(INDEX(Aktivitas,SMALL(IF(Target=$F$2,ROW(Aktivitas)-MIN(ROW(Aktivitas))+1),ROWS($B$3:B44)))&CHAR(10),\"\")","v":""},null,{"$f":"IFERROR(INDEX(Aktivitas,SMALL(IF(Target=$H$2,ROW(Aktivitas)-MIN(ROW(Aktivitas))+1),ROWS($B$3:B44)))&CHAR(10),\"\")","v":""}]
[null,{"$f":"IFERROR(INDEX(Aktivitas,SMALL(IF(Target=$B$2,ROW(Aktivitas)-MIN(ROW(Aktivitas))+1),ROWS($B$3:B45)))&\" \"&CHAR(10)&(INDEX(Hasil,SMALL(IF(Target=$B$2,ROW(Hasil)-MIN(ROW(Hasil))+1),ROWS($B$3:B45))))&CHAR(10),\"\")","v":""},null,{"$f":"IFERROR(INDEX(Aktivitas,SMALL(IF(Target=$D$2,ROW(Aktivitas)-MIN(ROW(Aktivitas))+1),ROWS($B$3:B45)))&CHAR(10),\"\")","v":""},null,{"$f":"IFERROR(INDEX(Aktivitas,SMALL(IF(Target=$F$2,ROW(Aktivitas)-MIN(ROW(Aktivitas))+1),ROWS($B$3:B45)))&CHAR(10),\"\")","v":""},null,{"$f":"IFERROR(INDEX(Aktivitas,SMALL(IF(Target=$H$2,ROW(Aktivitas)-MIN(ROW(Aktivitas))+1),ROWS($B$3:B45)))&CHAR(10),\"\")","v":""}]
[null,{"$f":"IFERROR(INDEX(Aktivitas,SMALL(IF(Target=$B$2,ROW(Aktivitas)-MIN(ROW(Aktivitas))+1),ROWS($B$3:B46)))&\" \"&CHAR(10)&(INDEX(Hasil,SMALL(IF(Target=$B$2,ROW(Hasil)-MIN(ROW(Hasil))+1),ROWS($B$3:B46))))&CHAR(10),\"\")","v":""},null,{"$f":"IFERROR(INDEX(Aktivitas,SMALL(IF(Target=$D$2,ROW(Aktivitas)-MIN(ROW(Aktivitas))+1),ROWS($B$3:B46)))&CHAR(10),\"\")","v":""},null,{"$f":"IFERROR(INDEX(Aktivitas,SMALL(IF(Target=$F$2,ROW(Aktivitas)-MIN(ROW(Aktivitas))+1),ROWS($B$3:B46)))&CHAR(10),\"\")","v":""},null,{"$f":"IFERROR(INDEX(Aktivitas,SMALL(IF(Target=$H$2,ROW(Aktivitas)-MIN(ROW(Aktivitas))+1),ROWS($B$3:B46)))&CHAR(10),\"\")","v":""}]
[null,{"$f":"IFERROR(INDEX(Aktivitas,SMALL(IF(Target=$B$2,ROW(Aktivitas)-MIN(ROW(Aktivitas))+1),ROWS($B$3:B47)))&\" \"&CHAR(10)&(INDEX(Hasil,SMALL(IF(Target=$B$2,ROW(Hasil)-MIN(ROW(Hasil))+1),ROWS($B$3:B47))))&CHAR(10),\"\")","v":""},null,{"$f":"IFERROR(INDEX(Aktivitas,SMALL(IF(Target=$D$2,ROW(Aktivitas)-MIN(ROW(Aktivitas))+1),ROWS($B$3:B47)))&CHAR(10),\"\")","v":""},null,{"$f":"IFERROR(INDEX(Aktivitas,SMALL(IF(Target=$F$2,ROW(Aktivitas)-MIN(ROW(Aktivitas))+1),ROWS($B$3:B47)))&CHAR(10),\"\")","v":""},null,{"$f":"IFERROR(INDEX(Aktivitas,SMALL(IF(Target=$H$2,ROW(Aktivitas)-MIN(ROW(Aktivitas))+1),ROWS($B$3:B47)))&CHAR(10),\"\")","v":""}]
[null,{"$f":"IFERROR(INDEX(Aktivitas,SMALL(IF(Target=$B$2,ROW(Aktivitas)-MIN(ROW(Aktivitas))+1),ROWS($B$3:B48)))&\" \"&CHAR(10)&(INDEX(Hasil,SMALL(IF(Target=$B$2,ROW(Hasil)-MIN(ROW(Hasil))+1),ROWS($B$3:B48))))&CHAR(10),\"\")","v":""},null,{"$f":"IFERROR(INDEX(Aktivitas,SMALL(IF(Target=$D$2,ROW(Aktivitas)-MIN(ROW(Aktivitas))+1),ROWS($B$3:B48)))&CHAR(10),\"\")","v":""},null,{"$f":"IFERROR(INDEX(Aktivitas,SMALL(IF(Target=$F$2,ROW(Aktivitas)-MIN(ROW(Aktivitas))+1),ROWS($B$3:B48)))&CHAR(10),\"\")","v":""},null,{"$f":"IFERROR(INDEX(Aktivitas,SMALL(IF(Target=$H$2,ROW(Aktivitas)-MIN(ROW(Aktivitas))+1),ROWS($B$3:B48)))&CHAR(10),\"\")","v":""}]
[null,{"$f":"IFERROR(INDEX(Aktivitas,SMALL(IF(Target=$B$2,ROW(Aktivitas)-MIN(ROW(Aktivitas))+1),ROWS($B$3:B49)))&\" \"&CHAR(10)&(INDEX(Hasil,SMALL(IF(Target=$B$2,ROW(Hasil)-MIN(ROW(Hasil))+1),ROWS($B$3:B49))))&CHAR(10),\"\")","v":""},null,{"$f":"IFERROR(INDEX(Aktivitas,SMALL(IF(Target=$D$2,ROW(Aktivitas)-MIN(ROW(Aktivitas))+1),ROWS($B$3:B49)))&CHAR(10),\"\")","v":""},null,{"$f":"IFERROR(INDEX(Aktivitas,SMALL(IF(Target=$F$2,ROW(Aktivitas)-MIN(ROW(Aktivitas))+1),ROWS($B$3:B49)))&CHAR(10),\"\")","v":""},null,{"$f":"IFERROR(INDEX(Aktivitas,SMALL(IF(Target=$H$2,ROW(Aktivitas)-MIN(ROW(Aktivitas))+1),ROWS($B$3:B49)))&CHAR(10),\"\")","v":""}]
[null,{"$f":"IFERROR(INDEX(Aktivitas,SMALL(IF(Target=$B$2,ROW(Aktivitas)-MIN(ROW(Aktivitas))+1),ROWS($B$3:B50)))&\" \"&CHAR(10)&(INDEX(Hasil,SMALL(IF(Target=$B$2,ROW(Hasil)-MIN(ROW(Hasil))+1),ROWS($B$3:B50))))&CHAR(10),\"\")","v":""},null,{"$f":"IFERROR(INDEX(Aktivitas,SMALL(IF(Target=$D$2,ROW(Aktivitas)-MIN(ROW(Aktivitas))+1),ROWS($B$3:B50)))&CHAR(10),\"\")","v":""},null,{"$f":"IFERROR(INDEX(Aktivitas,SMALL(IF(Target=$F$2,ROW(Aktivitas)-MIN(ROW(Aktivitas))+1),ROWS($B$3:B50)))&CHAR(10),\"\")","v":""},null,{"$f":"IFERROR(INDEX(Aktivitas,SMALL(IF(Target=$H$2,ROW(Aktivitas)-MIN(ROW(Aktivitas))+1),ROWS($B$3:B50)))&CHAR(10),\"\")","v":""}]
[null,{"$f":"IFERROR(INDEX(Aktivitas,SMALL(IF(Target=$B$2,ROW(Aktivitas)-MIN(ROW(Aktivitas))+1),ROWS($B$3:B51)))&\" \"&CHAR(10)&(INDEX(Hasil,SMALL(IF(Target=$B$2,ROW(Hasil)-MIN(ROW(Hasil))+1),ROWS($B$3:B51))))&CHAR(10),\"\")","v":""},null,{"$f":"IFERROR(INDEX(Aktivitas,SMALL(IF(Target=$D$2,ROW(Aktivitas)-MIN(ROW(Aktivitas))+1),ROWS($B$3:B51)))&CHAR(10),\"\")","v":""},null,{"$f":"IFERROR(INDEX(Aktivitas,SMALL(IF(Target=$F$2,ROW(Aktivitas)-MIN(ROW(Aktivitas))+1),ROWS($B$3:B51)))&CHAR(10),\"\")","v":""},null,{"$f":"IFERROR(INDEX(Aktivitas,SMALL(IF(Target=$H$2,ROW(Aktivitas)-MIN(ROW(Aktivitas))+1),ROWS($B$3:B51)))&CHAR(10),\"\")","v":""}]
[null,{"$f":"IFERROR(INDEX(Aktivitas,SMALL(IF(Target=$B$2,ROW(Aktivitas)-MIN(ROW(Aktivitas))+1),ROWS($B$3:B52)))&\" \"&CHAR(10)&(INDEX(Hasil,SMALL(IF(Target=$B$2,ROW(Hasil)-MIN(ROW(Hasil))+1),ROWS($B$3:B52))))&CHAR(10),\"\")","v":""},null,{"$f":"IFERROR(INDEX(Aktivitas,SMALL(IF(Target=$D$2,ROW(Aktivitas)-MIN(ROW(Aktivitas))+1),ROWS($B$3:B52)))&CHAR(10),\"\")","v":""},null,{"$f":"IFERROR(INDEX(Aktivitas,SMALL(IF(Target=$F$2,ROW(Aktivitas)-MIN(ROW(Aktivitas))+1),ROWS($B$3:B52)))&CHAR(10),\"\")","v":""},null,{"$f":"IFERROR(INDEX(Aktivitas,SMALL(IF(Target=$H$2,ROW(Aktivitas)-MIN(ROW(Aktivitas))+1),ROWS($B$3:B52)))&CHAR(10),\"\")","v":""}]
[null,{"$f":"IFERROR(INDEX(Aktivitas,SMALL(IF(Target=$B$2,ROW(Aktivitas)-MIN(ROW(Aktivitas))+1),ROWS($B$3:B53)))&\" \"&CHAR(10)&(INDEX(Hasil,SMALL(IF(Target=$B$2,ROW(Hasil)-MIN(ROW(Hasil))+1),ROWS($B$3:B53))))&CHAR(10),\"\")","v":""},null,{"$f":"IFERROR(INDEX(Aktivitas,SMALL(IF(Target=$D$2,ROW(Aktivitas)-MIN(ROW(Aktivitas))+1),ROWS($B$3:B53)))&CHAR(10),\"\")","v":""},null,{"$f":"IFERROR(INDEX(Aktivitas,SMALL(IF(Target=$F$2,ROW(Aktivitas)-MIN(ROW(Aktivitas))+1),ROWS($B$3:B53)))&CHAR(10),\"\")","v":""},null,{"$f":"IFERROR(INDEX(Aktivitas,SMALL(IF(Target=$H$2,ROW(Aktivitas)-MIN(ROW(Aktivitas))+1),ROWS($B$3:B53)))&CHAR(10),\"\")","v":""}]
[null,{"$f":"IFERROR(INDEX(Aktivitas,SMALL(IF(Target=$B$2,ROW(Aktivitas)-MIN(ROW(Aktivitas))+1),ROWS($B$3:B54)))&\" \"&CHAR(10)&(INDEX(Hasil,SMALL(IF(Target=$B$2,ROW(Hasil)-MIN(ROW(Hasil))+1),ROWS($B$3:B54))))&CHAR(10),\"\")","v":""},null,{"$f":"IFERROR(INDEX(Aktivitas,SMALL(IF(Target=$D$2,ROW(Aktivitas)-MIN(ROW(Aktivitas))+1),ROWS($B$3:B54)))&CHAR(10),\"\")","v":""},null,{"$f":"IFERROR(INDEX(Aktivitas,SMALL(IF(Target=$F$2,ROW(Aktivitas)-MIN(ROW(Aktivitas))+1),ROWS($B$3:B54)))&CHAR(10),\"\")","v":""},null,{"$f":"IFERROR(INDEX(Aktivitas,SMALL(IF(Target=$H$2,ROW(Aktivitas)-MIN(ROW(Aktivitas))+1),ROWS($B$3:B54)))&CHAR(10),\"\")","v":""}]
[null,{"$f":"IFERROR(INDEX(Aktivitas,SMALL(IF(Target=$B$2,ROW(Aktivitas)-MIN(ROW(Aktivitas))+1),ROWS($B$3:B55)))&\" \"&CHAR(10)&(INDEX(Hasil,SMALL(IF(Target=$B$2,ROW(Hasil)-MIN(ROW(Hasil))+1),ROWS($B$3:B55))))&CHAR(10),\"\")","v":""},null,{"$f":"IFERROR(INDEX(Aktivitas,SMALL(IF(Target=$D$2,ROW(Aktivitas)-MIN(ROW(Aktivitas))+1),ROWS($B$3:B55)))&CHAR(10),\"\")","v":""},null,{"$f":"IFERROR(INDEX(Aktivitas,SMALL(IF(Target=$F$2,ROW(Aktivitas)-MIN(ROW(Aktivitas))+1),ROWS($B$3:B55)))&CHAR(10),\"\")","v":""},null,{"$f":"IFERROR(INDEX(Aktivitas,SMALL(IF(Target=$H$2,ROW(Aktivitas)-MIN(ROW(Aktivitas))+1),ROWS($B$3:B55)))&CHAR(10),\"\")","v":""}]
[null,{"$f":"IFERROR(INDEX(Aktivitas,SMALL(IF(Target=$B$2,ROW(Aktivitas)-MIN(ROW(Aktivitas))+1),ROWS($B$3:B56)))&\" \"&CHAR(10)&(INDEX(Hasil,SMALL(IF(Target=$B$2,ROW(Hasil)-MIN(ROW(Hasil))+1),ROWS($B$3:B56))))&CHAR(10),\"\")","v":""},null,{"$f":"IFERROR(INDEX(Aktivitas,SMALL(IF(Target=$D$2,ROW(Aktivitas)-MIN(ROW(Aktivitas))+1),ROWS($B$3:B56)))&CHAR(10),\"\")","v":""},null,{"$f":"IFERROR(INDEX(Aktivitas,SMALL(IF(Target=$F$2,ROW(Aktivitas)-MIN(ROW(Aktivitas))+1),ROWS($B$3:B56)))&CHAR(10),\"\")","v":""},null,{"$f":"IFERROR(INDEX(Aktivitas,SMALL(IF(Target=$H$2,ROW(Aktivitas)-MIN(ROW(Aktivitas))+1),ROWS($B$3:B56)))&CHAR(10),\"\")","v":""}]
[null,{"$f":"IFERROR(INDEX(Aktivitas,SMALL(IF(Target=$B$2,ROW(Aktivitas)-MIN(ROW(Aktivitas))+1),ROWS($B$3:B57)))&\" \"&CHAR(10)&(INDEX(Hasil,SMALL(IF(Target=$B$2,ROW(Hasil)-MIN(ROW(Hasil))+1),ROWS($B$3:B57))))&CHAR(10),\"\")","v":""},null,{"$f":"IFERROR(INDEX(Aktivitas,SMALL(IF(Target=$D$2,ROW(Aktivitas)-MIN(ROW(Aktivitas))+1),ROWS($B$3:B57)))&CHAR(10),\"\")","v":""},null,{"$f":"IFERROR(INDEX(Aktivitas,SMALL(IF(Target=$F$2,ROW(Aktivitas)-MIN(ROW(Aktivitas))+1),ROWS($B$3:B57)))&CHAR(10),\"\")","v":""},null,{"$f":"IFERROR(INDEX(Aktivitas,SMALL(IF(Target=$H$2,ROW(Aktivitas)-MIN(ROW(Aktivitas))+1),ROWS($B$3:B57)))&CHAR(10),\"\")","v":""}]
[null,{"$f":"IFERROR(INDEX(Aktivitas,SMALL(IF(Target=$B$2,ROW(Aktivitas)-MIN(ROW(Aktivitas))+1),ROWS($B$3:B58)))&\" \"&CHAR(10)&(INDEX(Hasil,SMALL(IF(Target=$B$2,ROW(Hasil)-MIN(ROW(Hasil))+1),ROWS($B$3:B58))))&CHAR(10),\"\")","v":""},null,{"$f":"IFERROR(INDEX(Aktivitas,SMALL(IF(Target=$D$2,ROW(Aktivitas)-MIN(ROW(Aktivitas))+1),ROWS($B$3:B58)))&CHAR(10),\"\")","v":""},null,{"$f":"IFERROR(INDEX(Aktivitas,SMALL(IF(Target=$F$2,ROW(Aktivitas)-MIN(ROW(Aktivitas))+1),ROWS($B$3:B58)))&CHAR(10),\"\")","v":""},null,{"$f":"IFERROR(INDEX(Aktivitas,SMALL(IF(Target=$H$2,ROW(Aktivitas)-MIN(ROW(Aktivitas))+1),ROWS($B$3:B58)))&CHAR(10),\"\")","v":""}]
[null,{"$f":"IFERROR(INDEX(Aktivitas,SMALL(IF(Target=$B$2,ROW(Aktivitas)-MIN(ROW(Aktivitas))+1),ROWS($B$3:B59)))&\" \"&CHAR(10)&(INDEX(Hasil,SMALL(IF(Target=$B$2,ROW(Hasil)-MIN(ROW(Hasil))+1),ROWS($B$3:B59))))&CHAR(10),\"\")","v":""},null,{"$f":"IFERROR(INDEX(Aktivitas,SMALL(IF(Target=$D$2,ROW(Aktivitas)-MIN(ROW(Aktivitas))+1),ROWS($B$3:B59)))&CHAR(10),\"\")","v":""},null,{"$f":"IFERROR(INDEX(Aktivitas,SMALL(IF(Target=$F$2,ROW(Aktivitas)-MIN(ROW(Aktivitas))+1),ROWS($B$3:B59)))&CHAR(10),\"\")","v":""},null,{"$f":"IFERROR(INDEX(Aktivitas,SMALL(IF(Target=$H$2,ROW(Aktivitas)-MIN(ROW(Aktivitas))+1),ROWS($B$3:B59)))&CHAR(10),\"\")","v":""}]
[null,{"$f":"IFERROR(INDEX(Aktivitas,SMALL(IF(Target=$B$2,ROW(Aktivitas)-MIN(ROW(Aktivitas))+1),ROWS($B$3:B60)))&\" \"&CHAR(10)&(INDEX(Hasil,SMALL(IF(Target=$B$2,ROW(Hasil)-MIN(ROW(Hasil))+1),ROWS($B$3:B60))))&CHAR(10),\"\")","v":""},null,{"$f":"IFERROR(INDEX(Aktivitas,SMALL(IF(Target=$D$2,ROW(Aktivitas)-MIN(ROW(Aktivitas))+1),ROWS($B$3:B60)))&CHAR(10),\"\")","v":""},null,{"$f":"IFERROR(INDEX(Aktivitas,SMALL(IF(Target=$F$2,ROW(Aktivitas)-MIN(ROW(Aktivitas))+1),ROWS($B$3:B60)))&CHAR(10),\"\")","v":""},null,{"$f":"IFERROR(INDEX(Aktivitas,SMALL(IF(Target=$H$2,ROW(Aktivitas)-MIN(ROW(Aktivitas))+1),ROWS($B$3:B60)))&CHAR(10),\"\")","v":""}]
[null,{"$f":"IFERROR(INDEX(Aktivitas,SMALL(IF(Target=$B$2,ROW(Aktivitas)-MIN(ROW(Aktivitas))+1),ROWS($B$3:B61)))&\" \"&CHAR(10)&(INDEX(Hasil,SMALL(IF(Target=$B$2,ROW(Hasil)-MIN(ROW(Hasil))+1),ROWS($B$3:B61))))&CHAR(10),\"\")","v":""},null,{"$f":"IFERROR(INDEX(Aktivitas,SMALL(IF(Target=$D$2,ROW(Aktivitas)-MIN(ROW(Aktivitas))+1),ROWS($B$3:B61)))&CHAR(10),\"\")","v":""},null,{"$f":"IFERROR(INDEX(Aktivitas,SMALL(IF(Target=$F$2,ROW(Aktivitas)-MIN(ROW(Aktivitas))+1),ROWS($B$3:B61)))&CHAR(10),\"\")","v":""},null,{"$f":"IFERROR(INDEX(Aktivitas,SMALL(IF(Target=$H$2,ROW(Aktivitas)-MIN(ROW(Aktivitas))+1),ROWS($B$3:B61)))&CHAR(10),\"\")","v":""}]
[null,{"$f":"IFERROR(INDEX(Aktivitas,SMALL(IF(Target=$B$2,ROW(Aktivitas)-MIN(ROW(Aktivitas))+1),ROWS($B$3:B62)))&\" \"&CHAR(10)&(INDEX(Hasil,SMALL(IF(Target=$B$2,ROW(Hasil)-MIN(ROW(Hasil))+1),ROWS($B$3:B62))))&CHAR(10),\"\")","v":""},null,{"$f":"IFERROR(INDEX(Aktivitas,SMALL(IF(Target=$D$2,ROW(Aktivitas)-MIN(ROW(Aktivitas))+1),ROWS($B$3:B62)))&CHAR(10),\"\")","v":""},null,{"$f":"IFERROR(INDEX(Aktivitas,SMALL(IF(Target=$F$2,ROW(Aktivitas)-MIN(ROW(Aktivitas))+1),ROWS($B$3:B62)))&CHAR(10),\"\")","v":""},null,{"$f":"IFERROR(INDEX(Aktivitas,SMALL(IF(Target=$H$2,ROW(Aktivitas)-MIN(ROW(Aktivitas))+1),ROWS($B$3:B62)))&CHAR(10),\"\")","v":""}]
[null,{"$f":"IFERROR(INDEX(Aktivitas,SMALL(IF(Target=$B$2,ROW(Aktivitas)-MIN(ROW(Aktivitas))+1),ROWS($B$3:B63)))&\" \"&CHAR(10)&(INDEX(Hasil,SMALL(IF(Target=$B$2,ROW(Hasil)-MIN(ROW(Hasil))+1),ROWS($B$3:B63))))&CHAR(10),\"\")","v":""},null,{"$f":"IFERROR(INDEX(Aktivitas,SMALL(IF(Target=$D$2,ROW(Aktivitas)-MIN(ROW(Aktivitas))+1),ROWS($B$3:B63)))&CHAR(10),\"\")","v":""},null,{"$f":"IFERROR(INDEX(Aktivitas,SMALL(IF(Target=$F$2,ROW(Aktivitas)-MIN(ROW(Aktivitas))+1),ROWS($B$3:B63)))&CHAR(10),\"\")","v":""},null,{"$f":"IFERROR(INDEX(Aktivitas,SMALL(IF(Target=$H$2,ROW(Aktivitas)-MIN(ROW(Aktivitas))+1),ROWS($B$3:B63)))&CHAR(10),\"\")","v":""}]
[null,{"$f":"IFERROR(INDEX(Aktivitas,SMALL(IF(Target=$B$2,ROW(Aktivitas)-MIN(ROW(Aktivitas))+1),ROWS($B$3:B64)))&\" \"&CHAR(10)&(INDEX(Hasil,SMALL(IF(Target=$B$2,ROW(Hasil)-MIN(ROW(Hasil))+1),ROWS($B$3:B64))))&CHAR(10),\"\")","v":""},null,{"$f":"IFERROR(INDEX(Aktivitas,SMALL(IF(Target=$D$2,ROW(Aktivitas)-MIN(ROW(Aktivitas))+1),ROWS($B$3:B64)))&CHAR(10),\"\")","v":""},null,{"$f":"IFERROR(INDEX(Aktivitas,SMALL(IF(Target=$F$2,ROW(Aktivitas)-MIN(ROW(Aktivitas))+1),ROWS($B$3:B64)))&CHAR(10),\"\")","v":""},null,{"$f":"IFERROR(INDEX(Aktivitas,SMALL(IF(Target=$H$2,ROW(Aktivitas)-MIN(ROW(Aktivitas))+1),ROWS($B$3:B64)))&CHAR(10),\"\")","v":""}]
[null,{"$f":"IFERROR(INDEX(Aktivitas,SMALL(IF(Target=$B$2,ROW(Aktivitas)-MIN(ROW(Aktivitas))+1),ROWS($B$3:B65)))&\" \"&CHAR(10)&(INDEX(Hasil,SMALL(IF(Target=$B$2,ROW(Hasil)-MIN(ROW(Hasil))+1),ROWS($B$3:B65))))&CHAR(10),\"\")","v":""},null,{"$f":"IFERROR(INDEX(Aktivitas,SMALL(IF(Target=$D$2,ROW(Aktivitas)-MIN(ROW(Aktivitas))+1),ROWS($B$3:B65)))&CHAR(10),\"\")","v":""},null,{"$f":"IFERROR(INDEX(Aktivitas,SMALL(IF(Target=$F$2,ROW(Aktivitas)-MIN(ROW(Aktivitas))+1),ROWS($B$3:B65)))&CHAR(10),\"\")","v":""},null,{"$f":"IFERROR(INDEX(Aktivitas,SMALL(IF(Target=$H$2,ROW(Aktivitas)-MIN(ROW(Aktivitas))+1),ROWS($B$3:B65)))&CHAR(10),\"\")","v":""}]
[null,{"$f":"IFERROR(INDEX(Aktivitas,SMALL(IF(Target=$B$2,ROW(Aktivitas)-MIN(ROW(Aktivitas))+1),ROWS($B$3:B66)))&\" \"&CHAR(10)&(INDEX(Hasil,SMALL(IF(Target=$B$2,ROW(Hasil)-MIN(ROW(Hasil))+1),ROWS($B$3:B66))))&CHAR(10),\"\")","v":""},null,{"$f":"IFERROR(INDEX(Aktivitas,SMALL(IF(Target=$D$2,ROW(Aktivitas)-MIN(ROW(Aktivitas))+1),ROWS($B$3:B66)))&CHAR(10),\"\")","v":""},null,{"$f":"IFERROR(INDEX(Aktivitas,SMALL(IF(Target=$F$2,ROW(Aktivitas)-MIN(ROW(Aktivitas))+1),ROWS($B$3:B66)))&CHAR(10),\"\")","v":""},null,{"$f":"IFERROR(INDEX(Aktivitas,SMALL(IF(Target=$H$2,ROW(Aktivitas)-MIN(ROW(Aktivitas))+1),ROWS($B$3:B66)))&CHAR(10),\"\")","v":""}]
[null,{"$f":"IFERROR(INDEX(Aktivitas,SMALL(IF(Target=$B$2,ROW(Aktivitas)-MIN(ROW(Aktivitas))+1),ROWS($B$3:B67)))&\" \"&CHAR(10)&(INDEX(Hasil,SMALL(IF(Target=$B$2,ROW(Hasil)-MIN(ROW(Hasil))+1),ROWS($B$3:B67))))&CHAR(10),\"\")","v":""},null,{"$f":"IFERROR(INDEX(Aktivitas,SMALL(IF(Target=$D$2,ROW(Aktivitas)-MIN(ROW(Aktivitas))+1),ROWS($B$3:B67)))&CHAR(10),\"\")","v":""},null,{"$f":"IFERROR(INDEX(Aktivitas,SMALL(IF(Target=$F$2,ROW(Aktivitas)-MIN(ROW(Aktivitas))+1),ROWS($B$3:B67)))&CHAR(10),\"\")","v":""},null,{"$f":"IFERROR(INDEX(Aktivitas,SMALL(IF(Target=$H$2,ROW(Aktivitas)-MIN(ROW(Aktivitas))+1),ROWS($B$3:B67)))&CHAR(10),\"\")","v":""}]
[null,{"$f":"IFERROR(INDEX(Aktivitas,SMALL(IF(Target=$B$2,ROW(Aktivitas)-MIN(ROW(Aktivitas))+1),ROWS($B$3:B68)))&\" \"&CHAR(10)&(INDEX(Hasil,SMALL(IF(Target=$B$2,ROW(Hasil)-MIN(ROW(Hasil))+1),ROWS($B$3:B68))))&CHAR(10),\"\")","v":""},null,{"$f":"IFERROR(INDEX(Aktivitas,SMALL(IF(Target=$D$2,ROW(Aktivitas)-MIN(ROW(Aktivitas))+1),ROWS($B$3:B68)))&CHAR(10),\"\")","v":""},null,{"$f":"IFERROR(INDEX(Aktivitas,SMALL(IF(Target=$F$2,ROW(Aktivitas)-MIN(ROW(Aktivitas))+1),ROWS($B$3:B68)))&CHAR(10),\"\")","v":""},null,{"$f":"IFERROR(INDEX(Aktivitas,SMALL(IF(Target=$H$2,ROW(Aktivitas)-MIN(ROW(Aktivitas))+1),ROWS($B$3:B68)))&CHAR(10),\"\")","v":""}]
[null,{"$f":"IFERROR(INDEX(Aktivitas,SMALL(IF(Target=$B$2,ROW(Aktivitas)-MIN(ROW(Aktivitas))+1),ROWS($B$3:B69)))&\" \"&CHAR(10)&(INDEX(Hasil,SMALL(IF(Target=$B$2,ROW(Hasil)-MIN(ROW(Hasil))+1),ROWS($B$3:B69))))&CHAR(10),\"\")","v":""},null,{"$f":"IFERROR(INDEX(Aktivitas,SMALL(IF(Target=$D$2,ROW(Aktivitas)-MIN(ROW(Aktivitas))+1),ROWS($B$3:B69)))&CHAR(10),\"\")","v":""},null,{"$f":"IFERROR(INDEX(Aktivitas,SMALL(IF(Target=$F$2,ROW(Aktivitas)-MIN(ROW(Aktivitas))+1),ROWS($B$3:B69)))&CHAR(10),\"\")","v":""},null,{"$f":"IFERROR(INDEX(Aktivitas,SMALL(IF(Target=$H$2,ROW(Aktivitas)-MIN(ROW(Aktivitas))+1),ROWS($B$3:B69)))&CHAR(10),\"\")","v":""}]
[null,{"$f":"IFERROR(INDEX(Aktivitas,SMALL(IF(Target=$B$2,ROW(Aktivitas)-MIN(ROW(Aktivitas))+1),ROWS($B$3:B70)))&\" \"&CHAR(10)&(INDEX(Hasil,SMALL(IF(Target=$B$2,ROW(Hasil)-MIN(ROW(Hasil))+1),ROWS($B$3:B70))))&CHAR(10),\"\")","v":""},null,{"$f":"IFERROR(INDEX(Aktivitas,SMALL(IF(Target=$D$2,ROW(Aktivitas)-MIN(ROW(Aktivitas))+1),ROWS($B$3:B70)))&CHAR(10),\"\")","v":""},null,{"$f":"IFERROR(INDEX(Aktivitas,SMALL(IF(Target=$F$2,ROW(Aktivitas)-MIN(ROW(Aktivitas))+1),ROWS($B$3:B70)))&CHAR(10),\"\")","v":""},null,{"$f":"IFERROR(INDEX(Aktivitas,SMALL(IF(Target=$H$2,ROW(Aktivitas)-MIN(ROW(Aktivitas))+1),ROWS($B$3:B70)))&CHAR(10),\"\")","v":""}]
[null,{"$f":"IFERROR(INDEX(Aktivitas,SMALL(IF(Target=$B$2,ROW(Aktivitas)-MIN(ROW(Aktivitas))+1),ROWS($B$3:B71)))&\" \"&CHAR(10)&(INDEX(Hasil,SMALL(IF(Target=$B$2,ROW(Hasil)-MIN(ROW(Hasil))+1),ROWS($B$3:B71))))&CHAR(10),\"\")","v":""},null,{"$f":"IFERROR(INDEX(Aktivitas,SMALL(IF(Target=$D$2,ROW(Aktivitas)-MIN(ROW(Aktivitas))+1),ROWS($B$3:B71)))&CHAR(10),\"\")","v":""},null,{"$f":"IFERROR(INDEX(Aktivitas,SMALL(IF(Target=$F$2,ROW(Aktivitas)-MIN(ROW(Aktivitas))+1),ROWS($B$3:B71)))&CHAR(10),\"\")","v":""},null,{"$f":"IFERROR(INDEX(Aktivitas,SMALL(IF(Target=$H$2,ROW(Aktivitas)-MIN(ROW(Aktivitas))+1),ROWS($B$3:B71)))&CHAR(10),\"\")","v":""}]
[null,{"$f":"IFERROR(INDEX(Aktivitas,SMALL(IF(Target=$B$2,ROW(Aktivitas)-MIN(ROW(Aktivitas))+1),ROWS($B$3:B72)))&\" \"&CHAR(10)&(INDEX(Hasil,SMALL(IF(Target=$B$2,ROW(Hasil)-MIN(ROW(Hasil))+1),ROWS($B$3:B72))))&CHAR(10),\"\")","v":""},null,{"$f":"IFERROR(INDEX(Aktivitas,SMALL(IF(Target=$D$2,ROW(Aktivitas)-MIN(ROW(Aktivitas))+1),ROWS($B$3:B72)))&CHAR(10),\"\")","v":""},null,{"$f":"IFERROR(INDEX(Aktivitas,SMALL(IF(Target=$F$2,ROW(Aktivitas)-MIN(ROW(Aktivitas))+1),ROWS($B$3:B72)))&CHAR(10),\"\")","v":""},null,{"$f":"IFERROR(INDEX(Aktivitas,SMALL(IF(Target=$H$2,ROW(Aktivitas)-MIN(ROW(Aktivitas))+1),ROWS($B$3:B72)))&CHAR(10),\"\")","v":""}]
[null,{"$f":"IFERROR(INDEX(Aktivitas,SMALL(IF(Target=$B$2,ROW(Aktivitas)-MIN(ROW(Aktivitas))+1),ROWS($B$3:B73)))&\" \"&CHAR(10)&(INDEX(Hasil,SMALL(IF(Target=$B$2,ROW(Hasil)-MIN(ROW(Hasil))+1),ROWS($B$3:B73))))&CHAR(10),\"\")","v":""},null,{"$f":"IFERROR(INDEX(Aktivitas,SMALL(IF(Target=$D$2,ROW(Aktivitas)-MIN(ROW(Aktivitas))+1),ROWS($B$3:B73)))&CHAR(10),\"\")","v":""},null,{"$f":"IFERROR(INDEX(Aktivitas,SMALL(IF(Target=$F$2,ROW(Aktivitas)-MIN(ROW(Aktivitas))+1),ROWS($B$3:B73)))&CHAR(10),\"\")","v":""},null,{"$f":"IFERROR(INDEX(Aktivitas,SMALL(IF(Target=$H$2,ROW(Aktivitas)-MIN(ROW(Aktivitas))+1),ROWS($B$3:B73)))&CHAR(10),\"\")","v":""}]
[null,{"$f":"IFERROR(INDEX(Aktivitas,SMALL(IF(Target=$B$2,ROW(Aktivitas)-MIN(ROW(Aktivitas))+1),ROWS($B$3:B74)))&\" \"&CHAR(10)&(INDEX(Hasil,SMALL(IF(Target=$B$2,ROW(Hasil)-MIN(ROW(Hasil))+1),ROWS($B$3:B74))))&CHAR(10),\"\")","v":""},null,{"$f":"IFERROR(INDEX(Aktivitas,SMALL(IF(Target=$D$2,ROW(Aktivitas)-MIN(ROW(Aktivitas))+1),ROWS($B$3:B74)))&CHAR(10),\"\")","v":""},null,{"$f":"IFERROR(INDEX(Aktivitas,SMALL(IF(Target=$F$2,ROW(Aktivitas)-MIN(ROW(Aktivitas))+1),ROWS($B$3:B74)))&CHAR(10),\"\")","v":""},null,{"$f":"IFERROR(INDEX(Aktivitas,SMALL(IF(Target=$H$2,ROW(Aktivitas)-MIN(ROW(Aktivitas))+1),ROWS($B$3:B74)))&CHAR(10),\"\")","v":""}]
[null,{"$f":"IFERROR(INDEX(Aktivitas,SMALL(IF(Target=$B$2,ROW(Aktivitas)-MIN(ROW(Aktivitas))+1),ROWS($B$3:B75)))&\" \"&CHAR(10)&(INDEX(Hasil,SMALL(IF(Target=$B$2,ROW(Hasil)-MIN(ROW(Hasil))+1),ROWS($B$3:B75))))&CHAR(10),\"\")","v":""},null,{"$f":"IFERROR(INDEX(Aktivitas,SMALL(IF(Target=$D$2,ROW(Aktivitas)-MIN(ROW(Aktivitas))+1),ROWS($B$3:B75)))&CHAR(10),\"\")","v":""},null,{"$f":"IFERROR(INDEX(Aktivitas,SMALL(IF(Target=$F$2,ROW(Aktivitas)-MIN(ROW(Aktivitas))+1),ROWS($B$3:B75)))&CHAR(10),\"\")","v":""},null,{"$f":"IFERROR(INDEX(Aktivitas,SMALL(IF(Target=$H$2,ROW(Aktivitas)-MIN(ROW(Aktivitas))+1),ROWS($B$3:B75)))&CHAR(10),\"\")","v":""}]
[null,{"$f":"IFERROR(INDEX(Aktivitas,SMALL(IF(Target=$B$2,ROW(Aktivitas)-MIN(ROW(Aktivitas))+1),ROWS($B$3:B76)))&\" \"&CHAR(10)&(INDEX(Hasil,SMALL(IF(Target=$B$2,ROW(Hasil)-MIN(ROW(Hasil))+1),ROWS($B$3:B76))))&CHAR(10),\"\")","v":""},null,{"$f":"IFERROR(INDEX(Aktivitas,SMALL(IF(Target=$D$2,ROW(Aktivitas)-MIN(ROW(Aktivitas))+1),ROWS($B$3:B76)))&CHAR(10),\"\")","v":""},null,{"$f":"IFERROR(INDEX(Aktivitas,SMALL(IF(Target=$F$2,ROW(Aktivitas)-MIN(ROW(Aktivitas))+1),ROWS($B$3:B76)))&CHAR(10),\"\")","v":""},null,{"$f":"IFERROR(INDEX(Aktivitas,SMALL(IF(Target=$H$2,ROW(Aktivitas)-MIN(ROW(Aktivitas))+1),ROWS($B$3:B76)))&CHAR(10),\"\")","v":""}]
[null,{"$f":"IFERROR(INDEX(Aktivitas,SMALL(IF(Target=$B$2,ROW(Aktivitas)-MIN(ROW(Aktivitas))+1),ROWS($B$3:B77)))&\" \"&CHAR(10)&(INDEX(Hasil,SMALL(IF(Target=$B$2,ROW(Hasil)-MIN(ROW(Hasil))+1),ROWS($B$3:B77))))&CHAR(10),\"\")","v":""},null,{"$f":"IFERROR(INDEX(Aktivitas,SMALL(IF(Target=$D$2,ROW(Aktivitas)-MIN(ROW(Aktivitas))+1),ROWS($B$3:B77)))&CHAR(10),\"\")","v":""},null,{"$f":"IFERROR(INDEX(Aktivitas,SMALL(IF(Target=$F$2,ROW(Aktivitas)-MIN(ROW(Aktivitas))+1),ROWS($B$3:B77)))&CHAR(10),\"\")","v":""},null,{"$f":"IFERROR(INDEX(Aktivitas,SMALL(IF(Target=$H$2,ROW(Aktivitas)-MIN(ROW(Aktivitas))+1),ROWS($B$3:B77)))&CHAR(10),\"\")","v":""}]
[null,{"$f":"IFERROR(INDEX(Aktivitas,SMALL(IF(Target=$B$2,ROW(Aktivitas)-MIN(ROW(Aktivitas))+1),ROWS($B$3:B78)))&\" \"&CHAR(10)&(INDEX(Hasil,SMALL(IF(Target=$B$2,ROW(Hasil)-MIN(ROW(Hasil))+1),ROWS($B$3:B78))))&CHAR(10),\"\")","v":""},null,{"$f":"IFERROR(INDEX(Aktivitas,SMALL(IF(Target=$D$2,ROW(Aktivitas)-MIN(ROW(Aktivitas))+1),ROWS($B$3:B78)))&CHAR(10),\"\")","v":""},null,{"$f":"IFERROR(INDEX(Aktivitas,SMALL(IF(Target=$F$2,ROW(Aktivitas)-MIN(ROW(Aktivitas))+1),ROWS($B$3:B78)))&CHAR(10),\"\")","v":""},null,{"$f":"IFERROR(INDEX(Aktivitas,SMALL(IF(Target=$H$2,ROW(Aktivitas)-MIN(ROW(Aktivitas))+1),ROWS($B$3:B78)))&CHAR(10),\"\")","v":""}]
[null,{"$f":"IFERROR(INDEX(Aktivitas,SMALL(IF(Target=$B$2,ROW(Aktivitas)-MIN(ROW(Aktivitas))+1),ROWS($B$3:B79)))&\" \"&CHAR(10)&(INDEX(Hasil,SMALL(IF(Target=$B$2,ROW(Hasil)-MIN(ROW(Hasil))+1),ROWS($B$3:B79))))&CHAR(10),\"\")","v":""},null,{"$f":"IFERROR(INDEX(Aktivitas,SMALL(IF(Target=$D$2,ROW(Aktivitas)-MIN(ROW(Aktivitas))+1),ROWS($B$3:B79)))&CHAR(10),\"\")","v":""},null,{"$f":"IFERROR(INDEX(Aktivitas,SMALL(IF(Target=$F$2,ROW(Aktivitas)-MIN(ROW(Aktivitas))+1),ROWS($B$3:B79)))&CHAR(10),\"\")","v":""},null,{"$f":"IFERROR(INDEX(Aktivitas,SMALL(IF(Target=$H$2,ROW(Aktivitas)-MIN(ROW(Aktivitas))+1),ROWS($B$3:B79)))&CHAR(10),\"\")","v":""}]
[null,{"$f":"IFERROR(INDEX(Aktivitas,SMALL(IF(Target=$B$2,ROW(Aktivitas)-MIN(ROW(Aktivitas))+1),ROWS($B$3:B80)))&\" \"&CHAR(10)&(INDEX(Hasil,SMALL(IF(Target=$B$2,ROW(Hasil)-MIN(ROW(Hasil))+1),ROWS($B$3:B80))))&CHAR(10),\"\")","v":""},null,{"$f":"IFERROR(INDEX(Aktivitas,SMALL(IF(Target=$D$2,ROW(Aktivitas)-MIN(ROW(Aktivitas))+1),ROWS($B$3:B80)))&CHAR(10),\"\")","v":""},null,{"$f":"IFERROR(INDEX(Aktivitas,SMALL(IF(Target=$F$2,ROW(Aktivitas)-MIN(ROW(Aktivitas))+1),ROWS($B$3:B80)))&CHAR(10),\"\")","v":""},null,{"$f":"IFERROR(INDEX(Aktivitas,SMALL(IF(Target=$H$2,ROW(Aktivitas)-MIN(ROW(Aktivitas))+1),ROWS($B$3:B80)))&CHAR(10),\"\")","v":""}]
[null,{"$f":"IFERROR(INDEX(Aktivitas,SMALL(IF(Target=$B$2,ROW(Aktivitas)-MIN(ROW(Aktivitas))+1),ROWS($B$3:B81)))&\" \"&CHAR(10)&(INDEX(Hasil,SMALL(IF(Target=$B$2,ROW(Hasil)-MIN(ROW(Hasil))+1),ROWS($B$3:B81))))&CHAR(10),\"\")","v":""},null,{"$f":"IFERROR(INDEX(Aktivitas,SMALL(IF(Target=$D$2,ROW(Aktivitas)-MIN(ROW(Aktivitas))+1),ROWS($B$3:B81)))&CHAR(10),\"\")","v":""},null,{"$f":"IFERROR(INDEX(Aktivitas,SMALL(IF(Target=$F$2,ROW(Aktivitas)-MIN(ROW(Aktivitas))+1),ROWS($B$3:B81)))&CHAR(10),\"\")","v":""},null,{"$f":"IFERROR(INDEX(Aktivitas,SMALL(IF(Target=$H$2,ROW(Aktivitas)-MIN(ROW(Aktivitas))+1),ROWS($B$3:B81)))&CHAR(10),\"\")","v":""}]
[null,{"$f":"IFERROR(INDEX(Aktivitas,SMALL(IF(Target=$B$2,ROW(Aktivitas)-MIN(ROW(Aktivitas))+1),ROWS($B$3:B82)))&\" \"&CHAR(10)&(INDEX(Hasil,SMALL(IF(Target=$B$2,ROW(Hasil)-MIN(ROW(Hasil))+1),ROWS($B$3:B82))))&CHAR(10),\"\")","v":""},null,{"$f":"IFERROR(INDEX(Aktivitas,SMALL(IF(Target=$D$2,ROW(Aktivitas)-MIN(ROW(Aktivitas))+1),ROWS($B$3:B82)))&CHAR(10),\"\")","v":""},null,{"$f":"IFERROR(INDEX(Aktivitas,SMALL(IF(Target=$F$2,ROW(Aktivitas)-MIN(ROW(Aktivitas))+1),ROWS($B$3:B82)))&CHAR(10),\"\")","v":""},null,{"$f":"IFERROR(INDEX(Aktivitas,SMALL(IF(Target=$H$2,ROW(Aktivitas)-MIN(ROW(Aktivitas))+1),ROWS($B$3:B82)))&CHAR(10),\"\")","v":""}]
[null,{"$f":"IFERROR(INDEX(Aktivitas,SMALL(IF(Target=$B$2,ROW(Aktivitas)-MIN(ROW(Aktivitas))+1),ROWS($B$3:B83)))&\" \"&CHAR(10)&(INDEX(Hasil,SMALL(IF(Target=$B$2,ROW(Hasil)-MIN(ROW(Hasil))+1),ROWS($B$3:B83))))&CHAR(10),\"\")","v":""},null,{"$f":"IFERROR(INDEX(Aktivitas,SMALL(IF(Target=$D$2,ROW(Aktivitas)-MIN(ROW(Aktivitas))+1),ROWS($B$3:B83)))&CHAR(10),\"\")","v":""},null,{"$f":"IFERROR(INDEX(Aktivitas,SMALL(IF(Target=$F$2,ROW(Aktivitas)-MIN(ROW(Aktivitas))+1),ROWS($B$3:B83)))&CHAR(10),\"\")","v":""},null,{"$f":"IFERROR(INDEX(Aktivitas,SMALL(IF(Target=$H$2,ROW(Aktivitas)-MIN(ROW(Aktivitas))+1),ROWS($B$3:B83)))&CHAR(10),\"\")","v":""}]
[null,{"$f":"IFERROR(INDEX(Aktivitas,SMALL(IF(Target=$B$2,ROW(Aktivitas)-MIN(ROW(Aktivitas))+1),ROWS($B$3:B84)))&\" \"&CHAR(10)&(INDEX(Hasil,SMALL(IF(Target=$B$2,ROW(Hasil)-MIN(ROW(Hasil))+1),ROWS($B$3:B84))))&CHAR(10),\"\")","v":""},null,{"$f":"IFERROR(INDEX(Aktivitas,SMALL(IF(Target=$D$2,ROW(Aktivitas)-MIN(ROW(Aktivitas))+1),ROWS($B$3:B84)))&CHAR(10),\"\")","v":""},null,{"$f":"IFERROR(INDEX(Aktivitas,SMALL(IF(Target=$F$2,ROW(Aktivitas)-MIN(ROW(Aktivitas))+1),ROWS($B$3:B84)))&CHAR(10),\"\")","v":""},null,{"$f":"IFERROR(INDEX(Aktivitas,SMALL(IF(Target=$H$2,ROW(Aktivitas)-MIN(ROW(Aktivitas))+1),ROWS($B$3:B84)))&CHAR(10),\"\")","v":""}]
[null,{"$f":"IFERROR(INDEX(Aktivitas,SMALL(IF(Target=$B$2,ROW(Aktivitas)-MIN(ROW(Aktivitas))+1),ROWS($B$3:B85)))&\" \"&CHAR(10)&(INDEX(Hasil,SMALL(IF(Target=$B$2,ROW(Hasil)-MIN(ROW(Hasil))+1),ROWS($B$3:B85))))&CHAR(10),\"\")","v":""},null,{"$f":"IFERROR(INDEX(Aktivitas,SMALL(IF(Target=$D$2,ROW(Aktivitas)-MIN(ROW(Aktivitas))+1),ROWS($B$3:B85)))&CHAR(10),\"\")","v":""},null,{"$f":"IFERROR(INDEX(Aktivitas,SMALL(IF(Target=$F$2,ROW(Aktivitas)-MIN(ROW(Aktivitas))+1),ROWS($B$3:B85)))&CHAR(10),\"\")","v":""},null,{"$f":"IFERROR(INDEX(Aktivitas,SMALL(IF(Target=$H$2,ROW(Aktivitas)-MIN(ROW(Aktivitas))+1),ROWS($B$3:B85)))&CHAR(10),\"\")","v":""}]
[null,{"$f":"IFERROR(INDEX(Aktivitas,SMALL(IF(Target=$B$2,ROW(Aktivitas)-MIN(ROW(Aktivitas))+1),ROWS($B$3:B86)))&\" \"&CHAR(10)&(INDEX(Hasil,SMALL(IF(Target=$B$2,ROW(Hasil)-MIN(ROW(Hasil))+1),ROWS($B$3:B86))))&CHAR(10),\"\")","v":""},null,{"$f":"IFERROR(INDEX(Aktivitas,SMALL(IF(Target=$D$2,ROW(Aktivitas)-MIN(ROW(Aktivitas))+1),ROWS($B$3:B86)))&CHAR(10),\"\")","v":""},null,{"$f":"IFERROR(INDEX(Aktivitas,SMALL(IF(Target=$F$2,ROW(Aktivitas)-MIN(ROW(Aktivitas))+1),ROWS($B$3:B86)))&CHAR(10),\"\")","v":""},null,{"$f":"IFERROR(INDEX(Aktivitas,SMALL(IF(Target=$H$2,ROW(Aktivitas)-MIN(ROW(Aktivitas))+1),ROWS($B$3:B86)))&CHAR(10),\"\")","v":""}]
[null,{"$f":"IFERROR(INDEX(Aktivitas,SMALL(IF(Target=$B$2,ROW(Aktivitas)-MIN(ROW(Aktivitas))+1),ROWS($B$3:B87)))&\" \"&CHAR(10)&(INDEX(Hasil,SMALL(IF(Target=$B$2,ROW(Hasil)-MIN(ROW(Hasil))+1),ROWS($B$3:B87))))&CHAR(10),\"\")","v":""},null,{"$f":"IFERROR(INDEX(Aktivitas,SMALL(IF(Target=$D$2,ROW(Aktivitas)-MIN(ROW(Aktivitas))+1),ROWS($B$3:B87)))&CHAR(10),\"\")","v":""},null,{"$f":"IFERROR(INDEX(Aktivitas,SMALL(IF(Target=$F$2,ROW(Aktivitas)-MIN(ROW(Aktivitas))+1),ROWS($B$3:B87)))&CHAR(10),\"\")","v":""},null,{"$f":"IFERROR(INDEX(Aktivitas,SMALL(IF(Target=$H$2,ROW(Aktivitas)-MIN(ROW(Aktivitas))+1),ROWS($B$3:B87)))&CHAR(10),\"\")","v":""}]
[null,{"$f":"IFERROR(INDEX(Aktivitas,SMALL(IF(Target=$B$2,ROW(Aktivitas)-MIN(ROW(Aktivitas))+1),ROWS($B$3:B88)))&\" \"&CHAR(10)&(INDEX(Hasil,SMALL(IF(Target=$B$2,ROW(Hasil)-MIN(ROW(Hasil))+1),ROWS($B$3:B88))))&CHAR(10),\"\")","v":""},null,{"$f":"IFERROR(INDEX(Aktivitas,SMALL(IF(Target=$D$2,ROW(Aktivitas)-MIN(ROW(Aktivitas))+1),ROWS($B$3:B88)))&CHAR(10),\"\")","v":""},null,{"$f":"IFERROR(INDEX(Aktivitas,SMALL(IF(Target=$F$2,ROW(Aktivitas)-MIN(ROW(Aktivitas))+1),ROWS($B$3:B88)))&CHAR(10),\"\")","v":""},null,{"$f":"IFERROR(INDEX(Aktivitas,SMALL(IF(Target=$H$2,ROW(Aktivitas)-MIN(ROW(Aktivitas))+1),ROWS($B$3:B88)))&CHAR(10),\"\")","v":""}]
[null,{"$f":"IFERROR(INDEX(Aktivitas,SMALL(IF(Target=$B$2,ROW(Aktivitas)-MIN(ROW(Aktivitas))+1),ROWS($B$3:B89)))&\" \"&CHAR(10)&(INDEX(Hasil,SMALL(IF(Target=$B$2,ROW(Hasil)-MIN(ROW(Hasil))+1),ROWS($B$3:B89))))&CHAR(10),\"\")","v":""},null,{"$f":"IFERROR(INDEX(Aktivitas,SMALL(IF(Target=$D$2,ROW(Aktivitas)-MIN(ROW(Aktivitas))+1),ROWS($B$3:B89)))&CHAR(10),\"\")","v":""},null,{"$f":"IFERROR(INDEX(Aktivitas,SMALL(IF(Target=$F$2,ROW(Aktivitas)-MIN(ROW(Aktivitas))+1),ROWS($B$3:B89)))&CHAR(10),\"\")","v":""},null,{"$f":"IFERROR(INDEX(Aktivitas,SMALL(IF(Target=$H$2,ROW(Aktivitas)-MIN(ROW(Aktivitas))+1),ROWS($B$3:B89)))&CHAR(10),\"\")","v":""}]
[null,{"$f":"IFERROR(INDEX(Aktivitas,SMALL(IF(Target=$B$2,ROW(Aktivitas)-MIN(ROW(Aktivitas))+1),ROWS($B$3:B90)))&\" \"&CHAR(10)&(INDEX(Hasil,SMALL(IF(Target=$B$2,ROW(Hasil)-MIN(ROW(Hasil))+1),ROWS($B$3:B90))))&CHAR(10),\"\")","v":""},null,{"$f":"IFERROR(INDEX(Aktivitas,SMALL(IF(Target=$D$2,ROW(Aktivitas)-MIN(ROW(Aktivitas))+1),ROWS($B$3:B90)))&CHAR(10),\"\")","v":""},null,{"$f":"IFERROR(INDEX(Aktivitas,SMALL(IF(Target=$F$2,ROW(Aktivitas)-MIN(ROW(Aktivitas))+1),ROWS($B$3:B90)))&CHAR(10),\"\")","v":""},null,{"$f":"IFERROR(INDEX(Aktivitas,SMALL(IF(Target=$H$2,ROW(Aktivitas)-MIN(ROW(Aktivitas))+1),ROWS($B$3:B90)))&CHAR(10),\"\")","v":""}]
[null,{"$f":"IFERROR(INDEX(Aktivitas,SMALL(IF(Target=$B$2,ROW(Aktivitas)-MIN(ROW(Aktivitas))+1),ROWS($B$3:B91)))&\" \"&CHAR(10)&(INDEX(Hasil,SMALL(IF(Target=$B$2,ROW(Hasil)-MIN(ROW(Hasil))+1),ROWS($B$3:B91))))&CHAR(10),\"\")","v":""},null,{"$f":"IFERROR(INDEX(Aktivitas,SMALL(IF(Target=$D$2,ROW(Aktivitas)-MIN(ROW(Aktivitas))+1),ROWS($B$3:B91)))&CHAR(10),\"\")","v":""},null,{"$f":"IFERROR(INDEX(Aktivitas,SMALL(IF(Target=$F$2,ROW(Aktivitas)-MIN(ROW(Aktivitas))+1),ROWS($B$3:B91)))&CHAR(10),\"\")","v":""},null,{"$f":"IFERROR(INDEX(Aktivitas,SMALL(IF(Target=$H$2,ROW(Aktivitas)-MIN(ROW(Aktivitas))+1),ROWS($B$3:B91)))&CHAR(10),\"\")","v":""}]
[null,{"$f":"IFERROR(INDEX(Aktivitas,SMALL(IF(Target=$B$2,ROW(Aktivitas)-MIN(ROW(Aktivitas))+1),ROWS($B$3:B92)))&\" \"&CHAR(10)&(INDEX(Hasil,SMALL(IF(Target=$B$2,ROW(Hasil)-MIN(ROW(Hasil))+1),ROWS($B$3:B92))))&CHAR(10),\"\")","v":""},null,{"$f":"IFERROR(INDEX(Aktivitas,SMALL(IF(Target=$D$2,ROW(Aktivitas)-MIN(ROW(Aktivitas))+1),ROWS($B$3:B92)))&CHAR(10),\"\")","v":""},null,{"$f":"IFERROR(INDEX(Aktivitas,SMALL(IF(Target=$F$2,ROW(Aktivitas)-MIN(ROW(Aktivitas))+1),ROWS($B$3:B92)))&CHAR(10),\"\")","v":""},null,{"$f":"IFERROR(INDEX(Aktivitas,SMALL(IF(Target=$H$2,ROW(Aktivitas)-MIN(ROW(Aktivitas))+1),ROWS($B$3:B92)))&CHAR(10),\"\")","v":""}]
[null,{"$f":"IFERROR(INDEX(Aktivitas,SMALL(IF(Target=$B$2,ROW(Aktivitas)-MIN(ROW(Aktivitas))+1),ROWS($B$3:B93)))&\" \"&CHAR(10)&(INDEX(Hasil,SMALL(IF(Target=$B$2,ROW(Hasil)-MIN(ROW(Hasil))+1),ROWS($B$3:B93))))&CHAR(10),\"\")","v":""},null,{"$f":"IFERROR(INDEX(Aktivitas,SMALL(IF(Target=$D$2,ROW(Aktivitas)-MIN(ROW(Aktivitas))+1),ROWS($B$3:B93)))&CHAR(10),\"\")","v":""},null,{"$f":"IFERROR(INDEX(Aktivitas,SMALL(IF(Target=$F$2,ROW(Aktivitas)-MIN(ROW(Aktivitas))+1),ROWS($B$3:B93)))&CHAR(10),\"\")","v":""},null,{"$f":"IFERROR(INDEX(Aktivitas,SMALL(IF(Target=$H$2,ROW(Aktivitas)-MIN(ROW(Aktivitas))+1),ROWS($B$3:B93)))&CHAR(10),\"\")","v":""}]
[null,{"$f":"IFERROR(INDEX(Aktivitas,SMALL(IF(Target=$B$2,ROW(Aktivitas)-MIN(ROW(Aktivitas))+1),ROWS($B$3:B94)))&\" \"&CHAR(10)&(INDEX(Hasil,SMALL(IF(Target=$B$2,ROW(Hasil)-MIN(ROW(Hasil))+1),ROWS($B$3:B94))))&CHAR(10),\"\")","v":""},null,{"$f":"IFERROR(INDEX(Aktivitas,SMALL(IF(Target=$D$2,ROW(Aktivitas)-MIN(ROW(Aktivitas))+1),ROWS($B$3:B94)))&CHAR(10),\"\")","v":""},null,{"$f":"IFERROR(INDEX(Aktivitas,SMALL(IF(Target=$F$2,ROW(Aktivitas)-MIN(ROW(Aktivitas))+1),ROWS($B$3:B94)))&CHAR(10),\"\")","v":""},null,{"$f":"IFERROR(INDEX(Aktivitas,SMALL(IF(Target=$H$2,ROW(Aktivitas)-MIN(ROW(Aktivitas))+1),ROWS($B$3:B94)))&CHAR(10),\"\")","v":""}]
[null,{"$f":"IFERROR(INDEX(Aktivitas,SMALL(IF(Target=$B$2,ROW(Aktivitas)-MIN(ROW(Aktivitas))+1),ROWS($B$3:B95)))&\" \"&CHAR(10)&(INDEX(Hasil,SMALL(IF(Target=$B$2,ROW(Hasil)-MIN(ROW(Hasil))+1),ROWS($B$3:B95))))&CHAR(10),\"\")","v":""},null,{"$f":"IFERROR(INDEX(Aktivitas,SMALL(IF(Target=$D$2,ROW(Aktivitas)-MIN(ROW(Aktivitas))+1),ROWS($B$3:B95)))&CHAR(10),\"\")","v":""},null,{"$f":"IFERROR(INDEX(Aktivitas,SMALL(IF(Target=$F$2,ROW(Aktivitas)-MIN(ROW(Aktivitas))+1),ROWS($B$3:B95)))&CHAR(10),\"\")","v":""},null,{"$f":"IFERROR(INDEX(Aktivitas,SMALL(IF(Target=$H$2,ROW(Aktivitas)-MIN(ROW(Aktivitas))+1),ROWS($B$3:B95)))&CHAR(10),\"\")","v":""}]
[null,{"$f":"IFERROR(INDEX(Aktivitas,SMALL(IF(Target=$B$2,ROW(Aktivitas)-MIN(ROW(Aktivitas))+1),ROWS($B$3:B96)))&\" \"&CHAR(10)&(INDEX(Hasil,SMALL(IF(Target=$B$2,ROW(Hasil)-MIN(ROW(Hasil))+1),ROWS($B$3:B96))))&CHAR(10),\"\")","v":""},null,{"$f":"IFERROR(INDEX(Aktivitas,SMALL(IF(Target=$D$2,ROW(Aktivitas)-MIN(ROW(Aktivitas))+1),ROWS($B$3:B96)))&CHAR(10),\"\")","v":""},null,{"$f":"IFERROR(INDEX(Aktivitas,SMALL(IF(Target=$F$2,ROW(Aktivitas)-MIN(ROW(Aktivitas))+1),ROWS($B$3:B96)))&CHAR(10),\"\")","v":""},null,{"$f":"IFERROR(INDEX(Aktivitas,SMALL(IF(Target=$H$2,ROW(Aktivitas)-MIN(ROW(Aktivitas))+1),ROWS($B$3:B96)))&CHAR(10),\"\")","v":""}]
[null,{"$f":"IFERROR(INDEX(Aktivitas,SMALL(IF(Target=$B$2,ROW(Aktivitas)-MIN(ROW(Aktivitas))+1),ROWS($B$3:B97)))&\" \"&CHAR(10)&(INDEX(Hasil,SMALL(IF(Target=$B$2,ROW(Hasil)-MIN(ROW(Hasil))+1),ROWS($B$3:B97))))&CHAR(10),\"\")","v":""},null,{"$f":"IFERROR(INDEX(Aktivitas,SMALL(IF(Target=$D$2,ROW(Aktivitas)-MIN(ROW(Aktivitas))+1),ROWS($B$3:B97)))&CHAR(10),\"\")","v":""},null,{"$f":"IFERROR(INDEX(Aktivitas,SMALL(IF(Target=$F$2,ROW(Aktivitas)-MIN(ROW(Aktivitas))+1),ROWS($B$3:B97)))&CHAR(10),\"\")","v":""},null,{"$f":"IFERROR(INDEX(Aktivitas,SMALL(IF(Target=$H$2,ROW(Aktivitas)-MIN(ROW(Aktivitas))+1),ROWS($B$3:B97)))&CHAR(10),\"\")","v":""}]
[null,{"$f":"IFERROR(INDEX(Aktivitas,SMALL(IF(Target=$B$2,ROW(Aktivitas)-MIN(ROW(Aktivitas))+1),ROWS($B$3:B98)))&\" \"&CHAR(10)&(INDEX(Hasil,SMALL(IF(Target=$B$2,ROW(Hasil)-MIN(ROW(Hasil))+1),ROWS($B$3:B98))))&CHAR(10),\"\")","v":""},null,{"$f":"IFERROR(INDEX(Aktivitas,SMALL(IF(Target=$D$2,ROW(Aktivitas)-MIN(ROW(Aktivitas))+1),ROWS($B$3:B98)))&CHAR(10),\"\")","v":""},null,{"$f":"IFERROR(INDEX(Aktivitas,SMALL(IF(Target=$F$2,ROW(Aktivitas)-MIN(ROW(Aktivitas))+1),ROWS($B$3:B98)))&CHAR(10),\"\")","v":""},null,{"$f":"IFERROR(INDEX(Aktivitas,SMALL(IF(Target=$H$2,ROW(Aktivitas)-MIN(ROW(Aktivitas))+1),ROWS($B$3:B98)))&CHAR(10),\"\")","v":""}]
[null,{"$f":"IFERROR(INDEX(Aktivitas,SMALL(IF(Target=$B$2,ROW(Aktivitas)-MIN(ROW(Aktivitas))+1),ROWS($B$3:B99)))&\" \"&CHAR(10)&(INDEX(Hasil,SMALL(IF(Target=$B$2,ROW(Hasil)-MIN(ROW(Hasil))+1),ROWS($B$3:B99))))&CHAR(10),\"\")","v":""},null,{"$f":"IFERROR(INDEX(Aktivitas,SMALL(IF(Target=$D$2,ROW(Aktivitas)-MIN(ROW(Aktivitas))+1),ROWS($B$3:B99)))&CHAR(10),\"\")","v":""},null,{"$f":"IFERROR(INDEX(Aktivitas,SMALL(IF(Target=$F$2,ROW(Aktivitas)-MIN(ROW(Aktivitas))+1),ROWS($B$3:B99)))&CHAR(10),\"\")","v":""},null,{"$f":"IFERROR(INDEX(Aktivitas,SMALL(IF(Target=$H$2,ROW(Aktivitas)-MIN(ROW(Aktivitas))+1),ROWS($B$3:B99)))&CHAR(10),\"\")","v":""}]
[null,{"$f":"IFERROR(INDEX(Aktivitas,SMALL(IF(Target=$B$2,ROW(Aktivitas)-MIN(ROW(Aktivitas))+1),ROWS($B$3:B100)))&\" \"&CHAR(10)&(INDEX(Hasil,SMALL(IF(Target=$B$2,ROW(Hasil)-MIN(ROW(Hasil))+1),ROWS($B$3:B100))))&CHAR(10),\"\")","v":""},null,{"$f":"IFERROR(INDEX(Aktivitas,SMALL(IF(Target=$D$2,ROW(Aktivitas)-MIN(ROW(Aktivitas))+1),ROWS($B$3:B100)))&CHAR(10),\"\")","v":""},null,{"$f":"IFERROR(INDEX(Aktivitas,SMALL(IF(Target=$F$2,ROW(Aktivitas)-MIN(ROW(Aktivitas))+1),ROWS($B$3:B100)))&CHAR(10),\"\")","v":""},null,{"$f":"IFERROR(INDEX(Aktivitas,SMALL(IF(Target=$H$2,ROW(Aktivitas)-MIN(ROW(Aktivitas))+1),ROWS($B$3:B100)))&CHAR(10),\"\")","v":""}]

{"sheet":"Tentang","index":2,"n_rows":6,"n_cols":1,"rows_kept":6}
["Tentang buku kerja ini"]
["Panduan untuk pembaca layar"]
["Terdapat 3 lembar kerja dalam buku kerja ini. \n\nData Peta Rencana\nPeta Rencana Agile\nTentang\n\nInstruksi untuk setiap lembar kerja terletak dalam kolom A dimulai di sel A1 dari setiap lembar kerja. Instruksi dituliskan dengan teks yang tersembunyi. Setiap langkah akan memandu Anda memahami informasi dalam baris tersebut. Setiap langkah berikutnya berlanjut di sel A2, A3, dan selanjutnya, kecuali dijelaskan sebaliknya dengan jelas. Misalnya, teks instruksi mungkin mengatakan \"lanjutkan ke sel A6\" untuk langkah berikutnya. \n\nTeks tersembunyi tidak akan dicetak.\n\nUntuk menghapus instruksi ini dari lembar kerja, cukup hapus kolom A.\n"]
["Tentang Buku Kerja ini"]
["Masukkan informasi pencapaian dalam lembar kerja Data Peta Rencana.  Pastikan untuk mengurutkan prioritas yang diikuti dengan pencapaian untuk menentukan tampilan Selesai, Saat Ini, Jangka Pendek, dan Masa Mendatang dalam prioritas menurun, dengan item prioritas tertinggi tercantum di bagian atas. Peta Rencana dalam lembar kerja Peta Rencana Agile diperbarui secara otomatis.\n"]
["Ini adalah instruksi terakhir dalam lembar kerja ini."]